Cogmind - Beta 10.1 @@@ ROGUE MODE // 2020.10.25 @ 22:27:06 Player: derk Result: Destroyed by Tracker with Linked Autogun Performance ------------- Evolutions (8) 4000 Regions Visited (34) 6800 Robots Destroyed (239) 1195 Value Destroyed (8326) 8326 Prototype IDs (80) 1600 Alien Tech Used (13) 2600 Bonus (8484) 8484 TOTAL SCORE: 33005 Bonus ------- High Alert Combat Kills 318 Follower Combat Kills 766 Met Data Miner 300 Met Imprinter 300 Met Zhirov 300 Met Warlord at Base 500 MAIN.C Attacked Warlord 500 Hacked Protovariant 500 Met Warlord at Research 2000 Invited to Help at Command 2000 Scanned by Researcher 500 Pursued by Intercept 500 Cogmind --------- Core Integrity 0/1450 Matter 290/300 Energy 98/100 System Corruption 3% Temperature Cool (0) Movement Core (50) Location -2/Section 7 Parts ------- > --- POWER (2) -------- (None) > --- PROPULSION (5) --- (None) > --- UTILITY (14) ----- Experimental Optical Array Advanced Signal Interpreter Hacking Suite > --- WEAPON (3) ------- (None) > --- INVENTORY (4) ---- Light Antimatter Reactor Improved Energy Well (600) Enhanced Nova Cannon Peak State ------------ > --- POWER ------------ Mini Fusion Reactor Mini Fusion Reactor > --- PROPULSION ------- Improved Diametric Drive Improved Diametric Drive Cooled Impulse Thruster Impulse Thruster Array > --- UTILITY ---------- Advanced Power Amplifier Coolant Network Large Storage Unit Large Storage Unit Experimental Energy Well Dimensional Manipulator Advanced Signal Interpreter Advanced Hacking Suite System Mapper System Mapper Improved System Shield Assault Drone Bay > --- WEAPON ----------- Core Stripper CR-A16's Behemoth Slayer > --- INVENTORY -------- Compact Particle Reactor Cooled Impulse Thruster SHELL Armor Transdimensional Reconstructor High-powered Transdimensional Reconstructor Subatomic Replicator Terrabomb Vortex Driver Mini Smartbomb Launcher Centrium Greatsword Sigix Broadsword [Rating: 206] Favorites ----------- Power Micro Fission Core Engine Light Angular Momentum Engine Power Core Micro Fission Core Reactor Mini Fusion Reactor Propulsion Armored Treads Treads Armored Treads Flight Unit Improved Flight Unit Utility Large Storage Unit Device Experimental Sensor Array Storage Large Storage Unit Processor Advanced Signal Interpreter Hackware Hacking Suite Protection Medium Armor Plating Artifact Phase Redirector Weapon CR-A16's Behemoth Slayer Energy Gun EM Pulse Gun Energy Cannon Light EM Pulse Cannon Ballistic Gun Assault Rifle Ballistic Cannon Assault Cannon Launcher Rocket Launcher Special Weapon Improved Plasma Cutter Impact Weapon Core Stripper Slashing Weapon Centrium Greatsword Piercing Weapon CR-A16's Behemoth Slayer Special Melee Weapon Improved Datajack Build | -11 -10 -10 -9 -9 -9 -8 -8 -7 -7 -7 -7 -6 -6 -6 -6 -6 -6 -6 -5 -5 -5 -5 -5 -4 -4 -4 -4 -4 -3 -3 -3 -2 -2 -2 ------- Run | Scr Mat Min Mat Min Exi Min Mat Fac Low Low Zio Pro Fac Was Fac Low Low Dat Pro Fac Upp Upp Zhi Pro Fac Upp Upp War Pro Res Tes Res Qua Sec Slots Evolved 16 | . . . 2 . . . 2 2 . . . . 2 . . . . . . 2 . . . . 2 . . . . 2 . 2 . . Power 1 | . . . . . . . . . . . . . 1 . . . . . . . . . . . . . . . . . . . . . Propulsion 3 | . . . . . . . 1 . . . . . 1 . . . . . . . . . . . . . . . . . . 1 . . Utility 12 | . . . 2 . . . 1 2 . . . . . . . . . . . 2 . . . . 2 . . . . 2 . 1 . . Weapon . | . . . . . . . . . . . . . . . . . . . . . . . . . . . . . . . . . . . Parts Attached 412 | 7 8 22 38 1 2 8 31 22 2 . 1 7 18 . 13 1 13 2 14 21 1 2 7 2 17 1 4 10 3 17 46 24 27 20 Power 41 | 1 2 2 1 . . 1 2 3 1 . . 2 8 . 1 . 2 . 1 2 . . . . 2 . . . . . 4 2 . 4 Engine 15 | 1 2 1 1 . . 1 2 3 1 . . 1 1 . . . . . . 1 . . . . . . . . . . . . . . Core 16 | . . 1 . . . . . . . . . 1 7 . 1 . 2 . 1 1 . . . . 2 . . . . . . . . . Reactor 10 | . . . . . . . . . . . . . . . . . . . . . . . . . . . . . . . 4 2 . 4 Propulsion 51 | 2 1 3 10 . . . 11 3 . . . . 2 . 3 . 2 . 2 6 . . . . . . . 2 . 2 . 1 . 1 Treads 31 | 2 1 3 10 . . . 10 . . . . . . . . . . . 2 3 . . . . . . . . . . . . . . Leg . | . . . . . . . . . . . . . . . . . . . . . . . . . . . . . . . . . . . Wheel . | . . . . . . . . . . . . . . . . . . . . . . . . . . . . . . . . . . . Hover . | . . . . . . . . . . . . . . . . . . . . . . . . . . . . . . . . . . . Flight 20 | . . . . . . . 1 3 . . . . 2 . 3 . 2 . . 3 . . . . . . . 2 . 2 . 1 . 1 Utility 201 | 1 3 5 14 . 2 2 13 11 . . 1 3 5 . 7 1 4 1 7 11 1 1 7 1 12 1 2 5 1 15 20 16 22 6 Device 98 | . . 2 1 . . 1 2 4 . . . 2 2 . 3 1 2 . 3 5 1 1 2 . 9 1 1 3 . 13 11 13 14 1 Storage 31 | 1 3 2 4 . 1 . 3 1 . . . . 1 . . . . . 3 2 . . 3 . 1 . . . . . 3 1 2 . Processor 10 | . . . 1 . . . . 1 . . . . 1 . . . . . . 2 . . . . 1 . . . . . 2 . . 2 Hackware 17 | . . . . . . . . 4 . . . . . . 3 . . . . . . . 1 . . . . 1 . 2 1 2 1 2 Protection 43 | . . 1 8 . 1 1 8 1 . . 1 1 1 . 1 . 2 1 1 2 . . 1 1 1 . 1 1 1 . 3 . 3 1 Artifact 2 | . . . . . . . . . . . . . . . . . . . . . . . . . . . . . . . . . 2 . Weapon 119 | 3 2 12 13 1 . 5 5 5 1 . . 2 3 . 2 . 5 1 4 2 . 1 . 1 3 . 2 3 2 . 22 5 5 9 Energy Gun 5 | 1 . 2 . . . . 1 . . . . . . . . . . . . . . . . . . . . . . . 1 . . . Energy Cannon 18 | . . . 2 . . 1 . . . . . . . . . . 1 . 1 1 . . . . 1 . 1 1 . . 5 1 . 3 Ballistic Gun 23 | 2 2 6 6 . . 3 4 . . . . . . . . . . . . . . . . . . . . . . . . . . . Ballistic Cannon 5 | . . 1 3 . . . . . . . . . . . . . . . . . . 1 . . . . . . . . . . . . Launcher 16 | . . 3 2 1 . 1 . . . . . . . . . . 1 . 1 . . . . . . . . . 1 . 2 2 . 2 Special Weapon 2 | . . . . . . . . . . . . . . . . . . . . 1 . . . . . . . . . . 1 . . . Impact Weapon 4 | . . . . . . . . 1 . . . . . . . . . . . . . . . . . . . . . . 1 . 2 . Slashing Weapon 18 | . . . . . . . . 4 1 . . . . . . . . . . . . . . 1 1 . . . . . 5 1 2 3 Piercing Weapon 25 | . . . . . . . . . . . . 2 2 . . . 3 1 2 . . . . . 1 . 1 2 1 . 7 1 1 1 Special Melee Weapon 3 | . . . . . . . . . . . . . 1 . 2 . . . . . . . . . . . . . . . . . . . Unidentified Prototypes 57 | . . . 1 . . . 3 . . . . . . . . . . . . . 1 . 4 . 2 . . 6 1 3 18 6 9 3 Parts Lost 57 | . 1 4 3 . . 1 1 . . . . . 5 . 2 . 2 1 11 . . . . . . . . . . . . . . 26 Power 11 | . . 1 1 . . . . . . . . . 2 . . . 1 . 2 . . . . . . . . . . . . . . 4 Propulsion 11 | . . 1 . . . . . . . . . . 1 . . . 1 1 2 . . . . . . . . . . . . . . 5 Utility 23 | . . . 1 . . 1 1 . . . . . 2 . 1 . . . 5 . . . . . . . . . . . . . . 12 Weapon 12 | . 1 2 1 . . . . . . . . . . . 1 . . . 2 . . . . . . . . . . . . . . 5 Highest Loss Streak 20 | . 1 2 1 . . 1 1 . . . . . 5 . 1 . 2 1 6 . . . . . . . . . . . . . . 20 Average Slot Usage (%) 90 | . 96 93 99 100 95 88 90 84 84 84 84 85 89 93 93 93 92 83 60 76 90 93 93 94 90 90 90 89 90 89 89 87 87 71 Engine 6 | . 14 10 5 11 11 11 8 7 7 7 7 6 2 6 6 6 4 . . 3 5 5 5 5 1 . . . . . . . . . Core 2 | . . . 5 . . . . . . . . 1 5 6 6 6 8 8 2 2 5 5 5 5 8 10 10 10 10 9 6 . . . Treads 11 | . 28 26 22 22 22 22 26 . . . . . . . . . . . 4 1 . . . . . . . . . . . . . . Flight 9 | . . . . . . . . 22 23 23 23 23 25 26 26 26 26 24 11 12 16 16 16 16 15 15 15 15 15 12 13 16 16 15 Device 8 | . . 3 2 . . 2 3 14 15 15 15 13 6 6 6 6 5 2 1 7 16 16 16 16 28 25 25 22 20 21 19 19 17 8 Storage 15 | . 24 23 29 33 29 22 21 7 7 7 7 7 4 6 6 6 6 6 5 8 5 5 3 5 3 5 5 5 5 4 7 8 10 9 Processor 3 | . . . . . . . . 6 7 7 7 7 11 13 7 6 6 6 6 9 5 5 5 5 5 10 10 7 5 4 4 4 4 6 Hackware 10 | . . . . . . . . 22 23 23 23 23 20 20 20 26 26 26 21 17 16 16 16 16 15 15 15 17 20 22 21 20 18 13 Protection 4 | . . . 10 11 10 8 11 . . . . 1 1 . . . . 3 . 1 5 5 5 5 2 . . 2 5 4 3 . . 3 Energy Cannon 1 | . . . 5 8 . . . . . . . . . . . . . . . . 5 5 5 5 . . . . . . . . . . Ballistic Gun 6 | . 24 17 12 . . 16 18 . . . . . . . . . . . . . . . . . . . . . . . . . . . Ballistic Cannon 1 | . . 4 3 11 11 2 . . . . . . . . . . . . . . . 4 5 . . . . . . . . . . . Launcher 1 | . . 2 . 2 11 2 . . . . . . . . . . . . . . . . . . . . . . . . . 2 . 1 Piercing Weapon 1 | . . . . . . . . . . . . 1 6 6 6 6 4 2 4 5 5 5 5 5 4 5 4 5 4 4 3 1 3 3 Naked Turns . | . . . . . . . . . . . . . . . . . . . . . . . . . . . . . . . . . . . Heaviest Build 136 | 11 41 43 71 71 119 119 136 65 28 26 28 27 33 23 24 19 25 23 29 37 37 48 48 48 56 41 48 48 48 50 86 86 76 88 Greatest Support 81 | 40 40 40 43 40 40 40 60 60 27 27 27 27 33 24 24 24 24 24 30 81 48 48 48 48 48 48 48 51 51 51 70 81 81 81 Greatest Overweight (x) 23 | . 1 1 1 1 2 2 2 1 1 . 1 . . . 1 . 1 1 1 . . . . . 1 . . . . 1 1 1 . 23 Average Overweight (x) . | . . . 1 1 1 2 1 . . . . . . . . . . . . . . . . . . . . . . . . . . . Largest Inventory Capacity 40 | 6 16 16 22 22 36 30 40 20 10 10 10 10 10 8 8 8 8 8 8 4 4 4 4 4 10 10 10 10 10 10 16 16 16 16 Average Capacity 15 | 5 12 14 19 22 24 30 26 10 10 10 10 10 7 8 8 8 8 8 5 4 4 4 4 4 7 10 10 10 10 10 12 16 16 12 Most Carried 30 | 6 16 16 22 22 28 30 30 20 10 10 10 10 9 7 8 8 8 8 8 4 4 4 4 4 10 10 10 10 10 10 16 16 16 15 Average Carried 14 | 3 11 12 19 21 22 29 26 10 9 9 9 9 6 7 7 8 7 6 4 3 4 3 3 4 6 9 10 9 9 9 11 15 15 8 Final Capacity 30 | 6 16 16 22 22 30 30 20 10 10 10 10 10 8 8 8 8 8 8 4 4 4 4 4 4 10 10 10 10 10 10 16 16 16 4 Final Carried 30 | 6 16 15 22 22 28 30 20 10 10 10 10 10 7 7 8 8 7 8 4 4 4 4 4 4 10 10 10 10 10 9 15 16 15 3 Class Distribution -------------------- 31% | Hauler-Mutant 28% | Hacker-Sprinter 13% | Wizard-Sprinter 11% | Mutant 7% | Hacker-Mutant 3% | Scavenger-Mutant 3% | Hacker-Scout Dominant Class ---------------- Mutant | -10/Materials Mutant | -10/Mines Hauler-Mutant | -9/Materials Hauler-Mutant | -9/Mines Hauler-Mutant | -9/Exiles Hauler-Mutant | -8/Mines Hauler-Mutant | -8/Materials Hacker-Sprinter | -7/Factory Hacker-Sprinter | -7/Lower Caves Hacker-Sprinter | -7/Lower Caves Hacker-Mutant | -7/Zion Hacker-Sprinter | -6/Proximity Caves Hacker-Sprinter | -6/Factory Hacker-Sprinter | -6/Waste Hacker-Sprinter | -6/Factory Hacker-Sprinter | -6/Lower Caves Hacker-Sprinter | -6/Lower Caves Hacker-Sprinter | -6/Data Miner Hacker-Mutant | -5/Proximity Caves Hacker-Mutant | -5/Factory Hacker-Sprinter | -5/Upper Caves Hacker-Sprinter | -5/Upper Caves Hacker-Sprinter | -5/Zhirov Hacker-Sprinter | -4/Proximity Caves Hacker-Sprinter | -4/Factory Hacker-Scout | -4/Upper Caves Hacker-Scout | -4/Upper Caves Hacker-Sprinter | -4/Warlord Hacker-Sprinter | -3/Proximity Caves Wizard-Sprinter | -3/Research Wizard-Sprinter | -3/Testing Wizard-Sprinter | -2/Research Wizard-Sprinter | -2/Quarantine Hacker-Scout | -2/Section 7 Resources | -11 -10 -10 -9 -9 -9 -8 -8 -7 -7 -7 -7 -6 -6 -6 -6 -6 -6 -6 -5 -5 -5 -5 -5 -4 -4 -4 -4 -4 -3 -3 -3 -2 -2 -2 ----------- Run | Scr Mat Min Mat Min Exi Min Mat Fac Low Low Zio Pro Fac Was Fac Low Low Dat Pro Fac Upp Upp Zhi Pro Fac Upp Upp War Pro Res Tes Res Qua Sec Matter Collected 8649 | 273 320 459 783 210 24 536 1235 240 220 . . 80 145 . 155 292 123 . 206 191 50 40 370 30 160 20 . 200 316 163 758 360 290 400 Remotely . | . . . . . . . . . . . . . . . . . . . . . . . . . . . . . . . . . . . Salvage Created 10004 | 86 617 289 1348 261 . 610 1922 . . . . 98 173 . 178 108 84 . 133 156 . . 361 196 177 . . . 160 220 627 166 819 1215 Parts 498 | 3 45 27 86 14 . 41 106 . . . . 5 7 . 14 . 4 . 8 6 . . . . 8 . . . 1 5 31 15 13 59 Haulers Intercepted 12 | . 2 . 2 . . . 4 . . . . . . . 1 . . . . . . . . . 1 . . . . 1 . . . 1 Recyclers Shooed 10 | . 3 . 3 . . . 4 . . . . . . . . . . . . . . . . . . . . . . . . . . . Parts Field Recycled . | . . . . . . . . . . . . . . . . . . . . . . . . . . . . . . . . . . . Retrieved Matter . | . . . . . . . . . . . . . . . . . . . . . . . . . . . . . . . . . . . Parts Self-Destructed 23 | . . . . . . . . . . . . 5 . . . . 3 . 7 . . . . . . . . 8 . . . . . . Prevented 15 | . . . . . . . . . . . . . . . . . 1 . . . 1 . . . . 1 . 12 . . . . . . Kills | -11 -10 -10 -9 -9 -9 -8 -8 -7 -7 -7 -7 -6 -6 -6 -6 -6 -6 -6 -5 -5 -5 -5 -5 -4 -4 -4 -4 -4 -3 -3 -3 -2 -2 -2 ------- Run | Scr Mat Min Mat Min Exi Min Mat Fac Low Low Zio Pro Fac Was Fac Low Low Dat Pro Fac Upp Upp Zhi Pro Fac Upp Upp War Pro Res Tes Res Qua Sec Combat Hostiles Destroyed 156 | . 12 12 29 10 . 20 37 . . . . 1 . . 1 . 3 . 1 . . . . . . . . . 4 . 4 1 4 17 Melee 15 | . . . . . . . . . . . . . . . 1 . . . . . . . . . . . . . . . 4 . 2 8 Guns 76 | . 12 7 14 . . 6 37 . . . . . . . . . . . . . . . . . . . . . . . . . . . Cannons 20 | . . 1 10 6 . 2 . . . . . . . . . . . . . . . . . . . . . . . . . . . 1 AOE 40 | . . 4 5 4 . 12 . . . . . . . . . . 2 . . . . . . . . . . . 4 . . 1 . 8 Classes Destroyed 22 | 1 4 4 3 . . 1 . . . . . 1 . . 1 . . . 1 1 . . . . . . . . . . 1 1 2 1 Worker 9 | . . 1 2 . . 1 2 . . . . . . . . . . . . . . . . . 1 . . . . . . 1 . 1 Builder 4 | . . . 1 . . 1 1 . . . . . . . . . . . . . . . . . . . . . . . . . . 1 Tunneler 5 | . . 1 1 . . 3 . . . . . . . . . . . . . . . . . . . . . . . . . . . . Hauler 12 | . 2 . 2 . . . 4 . . . . . . . 1 . . . . . . . . . 1 . . . . 1 . . . 1 Recycler 11 | 1 3 . 2 . . 1 2 . . . . . 1 . . . . . . . . . . . . . . . . . 1 . . . Minesweeper 3 | . . . . . . . . . . . . . . . . . . . 1 . . . . . . . . . 2 . . . . . Operator 3 | . . . . . . . . . . . . . . . . . . . . 1 . . . . 1 . . . . . . . . 1 Drone 2 | . . . . . . . . . . . . . . . 1 . . . . . . . . . . . . . . . . . . 1 Watcher 28 | . 1 . 3 . . . 1 . . . . . 1 . 3 . . . . 4 . . . . 1 . . . . 3 2 4 3 2 Swarmer 57 | . 8 4 11 2 . 11 13 . . . . . . . . . 3 . . . . . . . . . . . . . 1 . . 4 Grunt 58 | . 4 4 6 6 . 7 18 . . . . . . . . . . . . . . . . . . . . . 4 . 3 . . 6 Brawler 4 | . . . 1 2 . . 1 . . . . . . . . . . . . . . . . . . . . . . . . . . . Duelist 2 | . . . 1 . . 1 . . . . . . . . . . . . . . . . . . . . . . . . . . . . Researcher 8 | . . . . . . . . . . . . . . . . . . . . . . . . . . . . . . . 2 . 3 3 Sentry 18 | . . 1 10 . . . 5 . . . . . . . . . . . . . . . . . . . . . . . . . . 2 Specialist 3 | . . . . . . . . . . . . . . . . . . . . . . . . . . . . . . . . . 3 . Hunter 1 | . . . . . . 1 . . . . . . . . . . . . . . . . . . . . . . . . . . . . Programmer 2 | . . . . . . . . . . . . . . . . . . . . . . . . . . . . . . . . . . 2 Behemoth 2 | . . . . . . . . . . . . 1 . . . . . . 1 . . . . . . . . . . . . . . . S7 Guard 1 | . . . . . . . . . . . . . . . . . . . . . . . . . . . . . . . . . . 1 Tracker 1 | . . . . . . . . . . . . . . . . . . . . . . . . . . . . . . . . . . 1 Striker 1 | . . . . . . . . . . . . . . . . . . . . . . . . . . . . . . . . 1 . . Fortress 1 | . . . . . . . . . . . . . . . . . . . . . . . . . . . . . . . . . 1 . Assembled 2 | . . 2 . . . . . . . . . . . . . . . . . . . . . . . . . . . . . . . . Best Kill Streak 8 | 1 3 4 7 3 . 4 4 . . . . 1 2 . 1 . 3 . 1 1 . . . . 1 . . . 4 1 2 3 2 8 Combat Bots Only 6 | . 3 3 6 3 . 4 4 . . . . 1 . . 1 . 3 . 1 . . . . . . . . . 4 . 2 1 2 4 Max Kills in Single Turn 4 | 1 1 2 3 2 . 2 3 . . . . 1 1 . 1 . 1 . 1 1 . . . . 1 . . . 1 1 1 1 1 4 Gunslinging 1 | . . . . . . . 1 . . . . . . . . . . . . . . . . . . . . . . . . . . . Exploded 3 | . . 2 2 2 . 2 . . . . . . . . . . 1 . . . . . . . . . . . 1 . . 1 . 3 Melee 1 | . . . . . . . . . . . . . . . 1 . . . . . . . . . . . . . . . 1 . 1 1 Uniques/NPCs Destroyed 1 | . . 1 . . . . . . . . . . . . . . . . . . . . . . . . . . . . . . . . YI-UF0 (-10/Mines) Combat | -11 -10 -10 -9 -9 -9 -8 -8 -7 -7 -7 -7 -6 -6 -6 -6 -6 -6 -6 -5 -5 -5 -5 -5 -4 -4 -4 -4 -4 -3 -3 -3 -2 -2 -2 -------- Run | Scr Mat Min Mat Min Exi Min Mat Fac Low Low Zio Pro Fac Was Fac Low Low Dat Pro Fac Upp Upp Zhi Pro Fac Upp Upp War Pro Res Tes Res Qua Sec Damage Taken 14079 | . 440 845 1016 448 . 678 1591 83 . . . 108 373 . 184 . 214 195 876 138 . 43 . 14 . . 32 . 167 103 . 160 167 6204 Core 2469 | . 77 130 206 63 . 61 150 57 . . . . 19 . 38 . 42 . 241 68 . . . 14 . . 18 . . . . 19 7 1259 Absorbed by Shields 326 | . . . 156 . . 142 . . . . . . . . 28 . . . . . . . . . . . . . . . . . . . Core Remaining (%) 71 | 100 . 17 . . . 17 72 . . . . 91 . . . . . . 60 . . . . 91 . . . . 98 . 100 . . . Volleys Fired 482 | 1 50 44 92 25 . 51 129 . . . . . . . . . 9 . 8 . 7 . . 21 3 . 1 . 8 . 6 7 . 20 Largest 2 | 2 2 2 2 2 . 2 2 . . . . . . . . . 1 . 2 . 1 . . 1 1 . 1 . 1 . 1 1 . 1 Hottest 200 | 60 60 85 79 100 . 112 53 . . . . . . . . . 36 . 126 . 98 . . 98 98 . 98 . 80 . 105 200 . 120 Shots Fired 826 | 2 100 80 169 39 . 87 258 . . . . . . . . . 9 . 9 . 7 . . 21 3 . 1 . 8 . 6 7 . 20 Gun 606 | 2 100 64 118 . . 64 258 . . . . . . . . . . . . . . . . . . . . . . . . . . . Cannon 150 | . . 10 47 33 . 6 . . . . . . . . . . . . 8 . 7 . . 21 3 . 1 . . . 5 1 . 8 Launcher 70 | . . 6 4 6 . 17 . . . . . . . . . . 9 . 1 . . . . . . . . . 8 . 1 6 . 12 Special . | . . . . . . . . . . . . . . . . . . . . . . . . . . . . . . . . . . . Kinetic 634 | 1 87 69 133 19 . 67 258 . . . . . . . . . . . . . . . . . . . . . . . . . . . Thermal 56 | . . 5 . . . 3 . . . . . . . . . . . . 8 . 7 . . 21 3 . 1 . . . 5 1 . 2 Explosive 59 | . . 6 4 6 . 17 . . . . . . . . . . . . . . . . . . . . . . 8 . . 6 . 12 Electromagnetic 70 | 1 13 . 32 14 . . . . . . . . . . . . 9 . 1 . . . . . . . . . . . . . . . Entropic 6 | . . . . . . . . . . . . . . . . . . . . . . . . . . . . . . . . . . 6 Robot Hit Streak 23 | 1 17 7 16 13 . 7 23 . . . . . . . . . 4 . 5 . . . . . . . . . 4 . . 5 . 7 Robot Miss Streak 5 | . 5 3 4 4 . 3 3 . . . . . . . . . . . 4 . . . . . . . . . . . . . . 3 Penetration Max 1 | . . . . . . . 1 . . . . . . . . . . . . . . . . . . . . . . . . . . 1 Secondary Targets 6 | . 1 2 1 . . . 2 . . . . . . . . . . . . . . . . . . . . . . . . . . . Max Gunslinging Chain 1 | . 1 1 1 . . . 1 . . . . . . . . . . . . . . . . . . . . . . . . . . . Shots Hit Robots 640 | 1 66 45 104 28 . 57 190 . . . . 2 3 . 12 3 2 1 6 11 . . 4 5 4 . . . 8 9 19 5 17 38 Core Hits 378 | 1 31 25 58 14 . 42 77 . . . . . 2 . 5 1 4 . 3 4 . . 3 3 4 . . . 16 4 11 14 9 47 Critical Hits 34 | . . 1 2 . . 2 3 . . . . . 1 . 1 1 . . . 3 . . 3 2 . . . . 1 2 2 1 4 5 Critical Kills 19 | . . . 1 . . 2 1 . . . . . 1 . 1 . . . . 1 . . 2 1 . . . . 1 1 1 . 3 3 Critical Parts Destroyed 13 | . . 1 1 . . . 2 . . . . . . . . 1 . . . 2 . . . 1 . . . . . 1 1 1 . 2 Melee Attacks 487 | . . . . . . . . 7 7 . . 3 19 . 42 10 14 1 5 46 9 . 4 14 31 4 4 4 17 61 51 25 50 59 Kinetic 17 | . . . . . . . . . . . . . . . . . . . . . . . . . . . . . . . . . 14 3 Impact 1 | . . . . . . . . 1 . . . . . . . . . . . . . . . . . . . . . . . . . . Slashing 180 | . . . . . . . . 6 7 . . . . . . . . . . . . . . 2 12 1 . . 12 46 22 18 20 34 Piercing 284 | . . . . . . . . . . . . 3 19 . 37 10 14 1 5 46 9 . 4 12 19 3 4 4 5 15 29 7 16 22 Sneak Attacks 31 | . . . . . . . . . . . . . 2 . 7 . . 1 1 2 . . . . 2 . . . 3 1 3 1 5 3 Combat Hostiles 1 | . . . . . . . . . . . . . . . . . . . . . . . . . . . . . . . . . . 1 Follow-up Attacks 14 | . . . . . . . . . . . . . . . . . . . . . . . . . . . . . 1 3 3 1 2 4 Damage Inflicted 29481 | 15 814 779 2145 1029 . 2094 3721 . . . . 50 441 . 744 499 157 214 328 970 . . 419 893 557 . . . 1706 866 2180 1645 1525 5690 Guns 6647 | 15 792 401 1027 . . 704 3708 . . . . . . . . . . . . . . . . . . . . . . . . . . . Cannons 1866 | . . 108 750 542 . 113 . . . . . . . . . . . . 108 . . . . . . . . . . . . 5 . 240 Explosions 7301 | . 22 270 368 483 . 1277 . . . . . . . . . . 157 . 41 . . . . . . . . . 1013 . . 1152 . 2518 Melee 13650 | . . . . . . . . . . . . 50 441 . 744 499 . 214 179 970 . . 419 893 557 . . . 693 866 2180 488 1525 2932 Ramming 17 | . . . . 4 . . 13 . . . . . . . . . . . . . . . . . . . . . . . . . . . Kinetic 7910 | . 680 478 1169 324 . 775 3708 . . . . . . . . . . . . . . . . . . . . . . . . . 650 126 Thermal 275 | . 22 31 21 46 . 42 . . . . . . . . . . . . 108 . . . . . . . . . . . . 5 . . Explosive 7014 | . . 270 347 437 . 1277 . . . . . . . . . . . . . . . . . . . . . . 1013 . . 1152 . 2518 Electromagnetic 1151 | 15 112 . 608 218 . . . . . . . . . . . . 157 . 41 . . . . . . . . . . . . . . . Impact . | . . . . . . . . . . . . . . . . . . . . . . . . . . . . . . . . . . . Slashing 5508 | . . . . . . . . . . . . . . . . . . . . . . . . . 207 . . . 537 662 1017 488 329 2268 Piercing 7366 | . . . . . . . . . . . . 50 441 . 744 499 . 214 179 970 . . 419 893 350 . . . 156 204 1163 . 546 538 Entropic 240 | . . . . . . . . . . . . . . . . . . . . . . . . . . . . . . . . . . 240 Highest Corruption 10 | . . . . . . . . . . . . . . 10 10 10 10 10 10 2 2 2 2 2 . . . . . 3 . . . 3 Average Corruption 5 | . . . . . . . . . . . . . . 10 10 10 10 10 10 2 2 2 2 2 . . . . . 2 . . . 1 Corruption Purged 3 | . . . . . . . . . . . . . . . . . . . . . . . . . . . . . . 3 . . . . Effects 160 | . . . . . . . . . . . . . . . 68 18 31 4 17 3 2 1 . 5 . . . . . 8 . . . 3 Message Errors 38 | . . . . . . . . . . . . . . . 19 2 4 1 5 . 1 1 . 2 . . . . . 1 . . . 2 Matter Fused 18 | . . . . . . . . . . . . . . . 5 2 6 . 3 . . . . . . . . . . 2 . . . . Heat Flow Errors 10 | . . . . . . . . . . . . . . . 5 2 . . . . . . . 1 . . . . . 2 . . . . Energy Discharges 14 | . . . . . . . . . . . . . . . 4 1 3 . 1 2 1 . . . . . . . . 2 . . . . Parts Rejected 1 | . . . . . . . . . . . . . . . . . . 1 . . . . . . . . . . . . . . . . Data Loss (minor) 9 | . . . . . . . . . . . . . . . 3 1 1 . 1 1 . . . 1 . . . . . 1 . . . . Data Loss (major) 4 | . . . . . . . . . . . . . . . 2 . 1 . 1 . . . . . . . . . . . . . . . Alerts 1 | . . . . . . . . . . . . . . . 1 . . . . . . . . . . . . . . . . . . . Misdirections 52 | . . . . . . . . . . . . . . . 24 7 14 2 5 . . . . . . . . . . . . . . . Targeting Errors 13 | . . . . . . . . . . . . . . . 5 3 2 . 1 . . . . 1 . . . . . . . . . 1 Overload Shots . | . . . . . . . . . . . . . . . . . . . . . . . . . . . . . . . . . . . Overflow Damage 2965 | . 7 2 40 25 . 64 . . . . . . 149 . 134 192 . 154 96 393 . . . 195 . . . . 415 150 427 15 150 357 Projectiles 40 | . . . 20 20 . . . . . . . . . . . . . . . . . . . . . . . . . . . . . . Explosions 340 | . 7 2 20 5 . 64 . . . . . . . . . . . . . . . . . . . . . . 26 . . 15 . 201 Melee 2585 | . . . . . . . . . . . . . 149 . 134 192 . 154 96 393 . . . 195 . . . . 389 150 427 . 150 156 Knockbacks 7 | . . 2 1 4 . . . . . . . . . . . . . . . . . . . . . . . . . . . . . . Impact . | . . . . . . . . . . . . . . . . . . . . . . . . . . . . . . . . . . . Kinetic 7 | . . 2 1 4 . . . . . . . . . . . . . . . . . . . . . . . . . . . . . . Secondary . | . . . . . . . . . . . . . . . . . . . . . . . . . . . . . . . . . . . Self-Inflicted Damage 463 | . 39 76 32 70 . 42 . . . . . . . . . . . . . . . . . . . . . . . . . . . 204 Shots 14 | . 1 4 1 2 . 2 . . . . . . . . . . . . . . . . . . . . . . . . . . . 4 Rammed 2 | . . . . 1 . . 1 . . . . . . . . . . . . . . . . . . . . . . . . . . . Targets Rammed 2 | . . . . 1 . . 1 . . . . . . . . . . . . . . . . . . . . . . . . . . . Kicked . | . . . . . . . . . . . . . . . . . . . . . . . . . . . . . . . . . . . Crushed . | . . . . . . . . . . . . . . . . . . . . . . . . . . . . . . . . . . . Highest Temperature 521 | . 111 11 282 372 . 180 244 . . . . . 6 . 285 240 . . 260 2 266 . . 212 32 . 16 . 106 139 96 80 342 521 Average Temperature 70 | . 60 6 54 112 . 26 50 . . . . . 3 . 134 128 . . 140 2 112 . . 68 17 . 12 . 57 74 43 31 103 138 Received Heat Transfer 2259 | . 153 129 222 186 . 174 648 39 . . . . 36 . 33 . . 24 24 27 . . . . . . 9 . 27 24 . . . 504 Effects 12 | . . . . 2 . . 1 . . . . . . . 1 . . . . . 1 . . . . . . . . . . . 1 6 Shutdowns 3 | . . . . . . . . . . . . . . . . . . . . . . . . . . . . . . . . . 1 2 Energy Bleed 3 | . . . . 2 . . . . . . . . . . . . . . . . 1 . . . . . . . . . . . . . Interference 5 | . . . . . . . 1 . . . . . . . 1 . . . . . . . . . . . . . . . . . . 3 Short Circuit 1 | . . . . . . . . . . . . . . . . . . . . . . . . . . . . . . . . . . 1 Siege Activations . | . . . . . . . . . . . . . . . . . . . . . . . . . . . . . . . . . . . Robots Corrupted 1 | . . . . . . . . . . . . . . . . . 1 . . . . . . . . . . . . . . . . . Combat Hostiles 1 | . . . . . . . . . . . . . . . . . 1 . . . . . . . . . . . . . . . . . Parts Fried 2 | . 1 . 1 . . . . . . . . . . . . . . . . . . . . . . . . . . . . . . . Impact Corruptions . | . . . . . . . . . . . . . . . . . . . . . . . . . . . . . . . . . . . Robots Melted . | . . . . . . . . . . . . . . . . . . . . . . . . . . . . . . . . . . . Combat Hostiles . | . . . . . . . . . . . . . . . . . . . . . . . . . . . . . . . . . . . Parts Melted 2 | . . . . . . . . . . . . . . . . . . . . . . . . . . . . . . . . . 2 . Heat Transferred 423 | . 50 74 50 100 . 74 . . . . . . . . . . . . 75 . . . . . . . . . . . . . . . Parts Sabotaged . | . . . . . . . . . . . . . . . . . . . . . . . . . . . . . . . . . . . Parts Stolen . | . . . . . . . . . . . . . . . . . . . . . . . . . . . . . . . . . . . Parts Stripped . | . . . . . . . . . . . . . . . . . . . . . . . . . . . . . . . . . . . Power Chain Reactions 3 | . 1 . 1 1 . . . . . . . . . . . . . . . . . . . . . . . . . . . . . . Missiles Intercepted . | . . . . . . . . . . . . . . . . . . . . . . . . . . . . . . . . . . . Alert | -11 -10 -10 -9 -9 -9 -8 -8 -7 -7 -7 -7 -6 -6 -6 -6 -6 -6 -6 -5 -5 -5 -5 -5 -4 -4 -4 -4 -4 -3 -3 -3 -2 -2 -2 ------- Run | Scr Mat Min Mat Min Exi Min Mat Fac Low Low Zio Pro Fac Was Fac Low Low Dat Pro Fac Upp Upp Zhi Pro Fac Upp Upp War Pro Res Tes Res Qua Sec Peak Influence 605 | 5 544 336 380 173 . 401 605 430 . . . . 111 30 489 . . . . 530 . . . . 121 . . . . 231 428 547 330 597 Initial 261 | . 3 211 3 114 . . 49 179 . . . . 18 . 21 . . . . . . . . . 2 . . . . 67 21 45 261 21 Average 184 | 2 106 128 186 108 . 234 311 146 . . . . 50 9 138 . . . . 197 . . . . 44 . . . . 122 116 362 83 401 Maximum Alert Level 2 | . 2 1 1 . . 2 2 2 . . . . . . 2 . . . . 2 . . . . . . . . . 1 2 2 1 2 Low Security (%) 59 | 100 90 75 51 100 . 24 20 62 . . . . 100 100 76 . . . . 50 . . . . 100 . . . . 98 82 19 89 6 Level 1 28 | . 2 24 48 . . 71 53 30 . . . . . . 5 . . . . 35 . . . . . . . . . 1 . 25 10 32 Level 2 12 | . 7 . . . . 4 25 6 . . . . . . 18 . . . . 13 . . . . . . . . . . 17 55 . 60 Level 3 . | . . . . . . . . . . . . . . . . . . . . . . . . . . . . . . . . . . . Level 4 . | . . . . . . . . . . . . . . . . . . . . . . . . . . . . . . . . . . . Level 5 . | . . . . . . . . . . . . . . . . . . . . . . . . . . . . . . . . . . . High Security . | . . . . . . . . . . . . . . . . . . . . . . . . . . . . . . . . . . . Max Security . | . . . . . . . . . . . . . . . . . . . . . . . . . . . . . . . . . . . Squads Dispatched 40 | . 1 . 2 . . . 1 1 . . . 1 . . 3 . . . . 4 . . . . 3 . . . . 2 5 . 3 14 Investigation 4 | . 1 . . . . . . . . . . . . . 1 . . . . . . . . . 2 . . . . . . . . . Extermination 9 | . . . . . . . . 1 . . . . . . 2 . . . . 1 . . . . 1 . . . . 1 2 . . 1 Reinforcement 22 | . . . 2 . . . 1 . . . . . . . . . . . . 3 . . . . . . . . . 1 2 . 3 10 Assault 2 | . . . . . . . . . . . . 1 . . . . . . . . . . . . . . . . . . 1 . . . Garrison . | . . . . . . . . . . . . . . . . . . . . . . . . . . . . . . . . . . . Intercept 3 | . . . . . . . . . . . . . . . . . . . . . . . . . . . . . . . . . . 3 Construction Impeded 3 | . . . . . . . . . . . . . . . . . . . . . . . . . . . . . . . . . 1 2 Haulers Reinforced 2 | . . . . . . . . . . . . . . . . . . . . . . . . . . . . . . . . . . 2 Stealth | -11 -10 -10 -9 -9 -9 -8 -8 -7 -7 -7 -7 -6 -6 -6 -6 -6 -6 -6 -5 -5 -5 -5 -5 -4 -4 -4 -4 -4 -3 -3 -3 -2 -2 -2 --------- Run | Scr Mat Min Mat Min Exi Min Mat Fac Low Low Zio Pro Fac Was Fac Low Low Dat Pro Fac Upp Upp Zhi Pro Fac Upp Upp War Pro Res Tes Res Qua Sec Distress Signals 25 | . . 3 2 . . . 4 . . . . . 1 . 1 . . . . 1 . . . . . . . . . 2 3 5 1 2 Communications Jammed . | . . . . . . . . . . . . . . . . . . . . . . . . . . . . . . . . . . . Distress Signals . | . . . . . . . . . . . . . . . . . . . . . . . . . . . . . . . . . . . Times Spotted 462 | . 21 19 57 15 . 26 58 19 . . . 15 12 2 27 . 5 4 9 16 1 3 . 6 2 . 8 . 3 25 23 19 16 51 Peak Tracking Total 14 | . 4 3 8 4 . 4 5 6 . . . 11 7 2 8 . 4 4 6 6 3 4 . 4 1 . 7 . 4 7 4 5 3 14 Tactical Retreats 67 | . 2 2 5 2 . 5 5 8 . . . 1 3 . 8 . . . 2 4 1 3 . 1 . . 1 . . 4 4 2 . 4 Traps | -11 -10 -10 -9 -9 -9 -8 -8 -7 -7 -7 -7 -6 -6 -6 -6 -6 -6 -6 -5 -5 -5 -5 -5 -4 -4 -4 -4 -4 -3 -3 -3 -2 -2 -2 ------- Run | Scr Mat Min Mat Min Exi Min Mat Fac Low Low Zio Pro Fac Was Fac Low Low Dat Pro Fac Upp Upp Zhi Pro Fac Upp Upp War Pro Res Tes Res Qua Sec Traps Triggered 14 | . 1 . 1 . . . 1 1 . . . . 2 . 5 . . . . 2 . . . . 1 . . . . . . . . . Indirectly . | . . . . . . . . . . . . . . . . . . . . . . . . . . . . . . . . . . . Trap Hack Attempts . | . . . . . . . . . . . . . . . . . . . . . . . . . . . . . . . . . . . Triggered . | . . . . . . . . . . . . . . . . . . . . . . . . . . . . . . . . . . . Disarmed 8 | . . . . . . . . . . . . . . . . . . . . . . . . . . . . . . . . . 8 . Reprogrammed . | . . . . . . . . . . . . . . . . . . . . . . . . . . . . . . . . . . . Reused 1 | . . . . . . . . . . . . . . . . . . . . 1 . . . . . . . . . . . . . . Traps Extracted . | . . . . . . . . . . . . . . . . . . . . . . . . . . . . . . . . . . . Installed 3 | . . . . . . . . . . 1 . . . . . . . . . 2 . . . . . . . . . . . . . . Triggered 7 | . . . . . . . . . . 1 . 1 . . . . . . . 1 1 . . . . 1 . 2 . . . . . . Machines | -11 -10 -10 -9 -9 -9 -8 -8 -7 -7 -7 -7 -6 -6 -6 -6 -6 -6 -6 -5 -5 -5 -5 -5 -4 -4 -4 -4 -4 -3 -3 -3 -2 -2 -2 ---------- Run | Scr Mat Min Mat Min Exi Min Mat Fac Low Low Zio Pro Fac Was Fac Low Low Dat Pro Fac Upp Upp Zhi Pro Fac Upp Upp War Pro Res Tes Res Qua Sec Machines Disabled 30 | . . 2 1 1 . 1 2 . . . . . . . . . . . . . . . . . . . 1 . 1 . 7 . 7 7 Max in Single Turn 2 | . . 2 1 1 . 1 1 . . . . . . . . . . . . . . . . . . . 1 . 1 . 1 . 1 1 Garrison Access 10 | . . . . . . . . 2 . . . . . . 1 . . . . 1 . . . . 1 . . . . 3 . 1 1 . Machines Sabotaged . | . . . . . . . . . . . . . . . . . . . . . . . . . . . . . . . . . . . Garrisons Compromised . | . . . . . . . . . . . . . . . . . . . . . . . . . . . . . . . . . . . Overloaded Fab Kills . | . . . . . . . . . . . . . . . . . . . . . . . . . . . . . . . . . . . Fab Network Shutdowns 5 | . . . . . . . . 1 . . . . . . 1 . . . . 1 . . . . . . . . . . 1 1 . . Hacking | -11 -10 -10 -9 -9 -9 -8 -8 -7 -7 -7 -7 -6 -6 -6 -6 -6 -6 -6 -5 -5 -5 -5 -5 -4 -4 -4 -4 -4 -3 -3 -3 -2 -2 -2 --------- Run | Scr Mat Min Mat Min Exi Min Mat Fac Low Low Zio Pro Fac Was Fac Low Low Dat Pro Fac Upp Upp Zhi Pro Fac Upp Upp War Pro Res Tes Res Qua Sec Machines Accessed 157 | . 3 . 13 . 1 . 8 11 1 1 1 . 6 . 16 2 1 4 . 11 1 . 4 . 11 1 . 6 . 17 10 6 16 6 Terminals 82 | . 3 . 9 . . . 5 5 . . . . 2 . 8 . . . . 6 . . . . 7 . . . . 11 8 2 11 5 Fabricators 16 | . . . . . . . . 2 . . . . 2 . 2 . . . . 2 . . . . 3 . . . . 1 1 3 . . Repair Stations 13 | . . . 2 . . . 1 . . . . . 1 . 2 . . . . 2 . . . . . . . . . 1 1 . 2 1 Recycling Units 1 | . . . . . . . . 1 . . . . . . . . . . . . . . . . . . . . . . . . . . Scanalyzers 11 | . . . 2 . . . 2 1 . . . . 1 . 2 . . . . . . . . . . . . . . 1 . . 2 . Garrison Access 11 | . . . . . . . . 2 . . . . . . 2 . . . . 1 . . . . 1 . . . . 3 . 1 1 . Total Hacks 484 | . 8 . 37 . 1 . 26 35 1 1 4 . 19 . 34 11 1 26 . 34 1 . 17 . 36 1 . 9 . 48 42 13 61 18 Successful 370 | . 3 . 25 . 1 . 19 28 1 1 4 . 15 . 18 11 1 26 . 25 1 . 17 . 23 1 . 9 . 35 39 12 50 5 Failed 114 | . 5 . 12 . . . 7 7 . . . . 4 . 16 . . . . 9 . . . . 13 . . . . 13 3 1 11 13 Catastrophic 10 | . 1 . 3 . . . . . . . . . 1 . 1 . . . . 1 . . . . 1 . . . . 1 . . . 1 Database Lockouts . | . . . . . . . . . . . . . . . . . . . . . . . . . . . . . . . . . . . Manual 189 | . 6 . 14 . . . 11 10 . . . . 11 . 12 . . . . 18 . . . . 21 . . 1 . 27 19 2 28 9 Terminals 280 | . 8 . 23 . . . 17 14 . . . . 10 . 17 . . . . 25 . . . . 26 . . . . 31 38 5 50 16 Fabricators 40 | . . . . . . . . 4 . . . . 5 . 4 . . . . 4 . . . . 9 . . . . 5 2 7 . . Repair Stations 33 | . . . 6 . . . 5 . . . . . 2 . 6 . . . . 4 . . . . . . . . . 2 2 . 4 2 Recycling Units 2 | . . . . . . . . 2 . . . . . . . . . . . . . . . . . . . . . . . . . . Scanalyzers 40 | . . . 8 . . . 4 12 . . . . 2 . 4 . . . . . . . . . . . . . . 4 . . 6 . Garrison Access 16 | . . . . . . . . 3 . . . . . . 3 . . . . 1 . . . . 1 . . . . 6 . 1 1 . Terminal Hacks 214 | . 1 . 6 . 1 . 8 5 1 1 4 . 5 . 4 11 1 26 . 12 1 . 17 . 12 1 . 9 . 18 30 5 32 3 Record 37 | . . . . . 1 . . . . . . . . . . 10 . 11 . . . . 5 . . . . 7 . . . . 3 . Part Schematic 25 | . 1 . . . . . . . . . 4 . . . 1 . . 6 . 2 . . 4 . . . . . . 4 2 . 1 . Robot Schematic 6 | . . . . . . . . . . . . . . . . . . 6 . . . . . . . . . . . . . . . . Robot Analysis 5 | . . . . . . . . . . . . . . . . . . . . . . . 4 . . . . . . 1 . . . . Prototype ID Bank 10 | . . . 1 . . . . . . . . . . . . . . 3 . . . . 4 . . . . . . . . . 2 . Open Door 9 | . . . . . . . . . 1 1 . . . . . 1 1 . . . 1 . . . . 1 . 2 . . 1 . . . Level Access Points 1 | . . . . . . . . . . . . . . . . . . . . . . . . . . . . . . . 1 . . . Branch Access Points 7 | . . . 1 . . . . . . . . . . . . . . . . 1 . . . . 1 . . . . 1 1 1 1 . Emergency Access Points 4 | . . . . . . . . . . . . . . . . . . . . . . . . . . . . . . . 1 . 2 1 Machine Index 1 | . . . . . . . . 1 . . . . . . . . . . . . . . . . . . . . . . . . . . Terminal Index 7 | . . . . . . . . . . . . . 1 . 1 . . . . 1 . . . . 1 . . . . . 1 1 1 . Fabricator Index 7 | . . . . . . . . . . . . . 1 . . . . . . . . . . . 1 . . . . 1 1 1 2 . Repair Station Index 3 | . . . . . . . . . . . . . . . 1 . . . . . . . . . 1 . . . . . . . 1 . Scanalyzer Index 3 | . . . . . . . . . . . . . . . . . . . . . . . . . 1 . . . . . 1 . 1 . Garrison Index 3 | . . . . . . . . . . . . . . . . . . . . . . . . . 1 . . . . 1 . . 1 . Unreport Threat 25 | . . . 1 . . . 1 2 . . . . 1 . 1 . . . . 1 . . . . 1 . . . . 3 6 1 6 1 Locate Traps 16 | . . . . . . . 4 . . . . . 1 . . . . . . 3 . . . . 2 . . . . 3 2 . 1 . Disarm Traps 2 | . . . . . . . . . . . . . . . . . . . . . . . . . . . . . . . . . 2 . Surveillance Status 1 | . . . . . . . . . . . . . . . . . . . . . . . . . . . . . . . . . 1 . Reinforcement Status 1 | . . . . . . . . . . . . . . . . . . . . . . . . . . . . . . . . 1 . . Assault Status 1 | . . . . . . . . . . . . . . . . . . . . . . . . . . . . . . . . . 1 . Recall Investigation 2 | . . . . . . . . . . . . . . . . . . . . . . . . . . . . . . 1 1 . . . Recall Extermination 2 | . . . . . . . . . . . . . . . . . . . . . . . . . . . . . . 1 1 . . . Recall Reinforcements 7 | . . . . . . . . . . . . . . . . . . . . 1 . . . . . . . . . 1 3 . 1 1 Hauler Manifests 1 | . . . 1 . . . . . . . . . . . . . . . . . . . . . . . . . . . . . . . Registered Components 1 | . . . . . . . . . . . . . . . . . . . . . . . . . 1 . . . . . . . . . Registered Prototypes 1 | . . . . . . . . . . . . . . . . . . . . . . . . . . . . . . . . . 1 . Zone Layout 23 | . . . 2 . . . 3 2 . . . . 1 . . . . . . 3 . . . . 2 . . . . 1 5 . 4 . Protovariant Controls 3 | . . . . . . . . . . . . . . . . . . . . . . . . . . . . . . . 3 . . . Fabricator Hacks 26 | . . . . . . . . 3 . . . . 1 . 4 . . . . 3 . . . . 4 . . . . 3 2 6 . . Network Status 2 | . . . . . . . . 1 . . . . . . . . . . . . . . . . . . . . . 1 . . . . Load Schematic 13 | . . . . . . . . 1 . . . . 1 . 2 . . . . 1 . . . . 3 . . . . 1 1 3 . . Build 11 | . . . . . . . . 1 . . . . . . 2 . . . . 2 . . . . 1 . . . . 1 1 3 . . Repair Station Hacks 30 | . . . 6 . . . 4 . . . . . 2 . 4 . . . . 4 . . . . . . . . . 2 2 . 4 2 Scan Component 15 | . . . 3 . . . 2 . . . . . 1 . 2 . . . . 2 . . . . . . . . . 1 1 . 2 1 Repair 14 | . . . 3 . . . 2 . . . . . 1 . 1 . . . . 2 . . . . . . . . . 1 1 . 2 1 Refit 1 | . . . . . . . . . . . . . . . 1 . . . . . . . . . . . . . . . . . . . Recycling Unit Hacks 2 | . . . . . . . . 2 . . . . . . . . . . . . . . . . . . . . . . . . . . Process 1 | . . . . . . . . 1 . . . . . . . . . . . . . . . . . . . . . . . . . . Retrieve Matter 1 | . . . . . . . . 1 . . . . . . . . . . . . . . . . . . . . . . . . . . Scanalyzer 40 | . . . 8 . . . 4 12 . . . . 2 . 4 . . . . . . . . . . . . . . 4 . . 6 . Insert Component 22 | . . . 4 . . . 2 6 . . . . 1 . 2 . . . . . . . . . . . . . . 2 . . 5 . Analyze 18 | . . . 4 . . . 2 6 . . . . 1 . 2 . . . . . . . . . . . . . . 2 . . 1 . Garrison Access Hacks 10 | . . . . . . . . 2 . . . . . . 1 . . . . 1 . . . . 1 . . . . 3 . 1 1 . Seal Access 10 | . . . . . . . . 2 . . . . . . 1 . . . . 1 . . . . 1 . . . . 3 . 1 1 . Unauthorized Hacks 48 | . 2 . 5 . . . 3 4 . . . . 5 . 1 . . . . 5 . . . . 6 . . . . 5 5 . 7 . Terminals 41 | . 2 . 5 . . . 3 4 . . . . 3 . 1 . . . . 5 . . . . 4 . . . . 2 5 . 7 . Track 17 | . 1 . 4 . . . 3 1 . . . . 1 . . . . . . 1 . . . . 1 . . . . 1 2 . 2 . Assimilate 6 | . . . . . . . . 1 . . . . . . 1 . . . . 1 . . . . 1 . . . . 1 . . 1 . Botnet 8 | . . . 1 . . . . 1 . . . . 1 . . . . . . 2 . . . . 1 . . . . . 1 . 1 . Disrupt 3 | . 1 . . . . . . . . . . . . . . . . . . . . . . . . . . . . . . . 2 . Operators 7 | . . . . . . . . 1 . . . . 1 . . . . . . 1 . . . . 1 . . . . . 2 . 1 . Fabricators 5 | . . . . . . . . . . . . . 2 . . . . . . . . . . . 2 . . . . 1 . . . . Report 1 | . . . . . . . . . . . . . 1 . . . . . . . . . . . . . . . . . . . . . Siphon 3 | . . . . . . . . . . . . . . . . . . . . . . . . . 2 . . . . 1 . . . . Haulers 1 | . . . . . . . . . . . . . 1 . . . . . . . . . . . . . . . . . . . . . Repair Stations . | . . . . . . . . . . . . . . . . . . . . . . . . . . . . . . . . . . . Recycling Units . | . . . . . . . . . . . . . . . . . . . . . . . . . . . . . . . . . . . Scanalyzers . | . . . . . . . . . . . . . . . . . . . . . . . . . . . . . . . . . . . Garrison Access 2 | . . . . . . . . . . . . . . . . . . . . . . . . . . . . . . 2 . . . . Broadcast 1 | . . . . . . . . . . . . . . . . . . . . . . . . . . . . . . 1 . . . . Watchers 1 | . . . . . . . . . . . . . . . . . . . . . . . . . . . . . . 1 . . . . Data Cores Recovered 1 | . . . . . . . . . . . . . . . . . . . . . . . . . 1 . . . . . . . . . Used . | . . . . . . . . . . . . . . . . . . . . . . . . . . . . . . . . . . . Hacking Detections 113 | . 3 . 12 . . . 7 9 . . . . 6 . 14 . . . . 9 . . . . 10 . . . . 15 7 4 11 6 Full Trace Events 3 | . . . . . . . . . . . . . . . 1 . . . . . . . . . 2 . . . . . . . . . Feedback Events 1 | . . . . . . . . . . . . . . . 1 . . . . . . . . . . . . . . . . . . . Hackware Fried 1 | . . . . . . . . . . . . . . . 1 . . . . . . . . . . . . . . . . . . . Feedback Blocked . | . . . . . . . . . . . . . . . . . . . . . . . . . . . . . . . . . . . Robot Schematics Acquired 6 | . . . . . . . . . . . . . . . . . . 6 . . . . . . . . . . . . . . . . Robots Built . | . . . . . . . . . . . . . . . . . . . . . . . . . . . . . . . . . . . Matter . | . . . . . . . . . . . . . . . . . . . . . . . . . . . . . . . . . . . Time . | . . . . . . . . . . . . . . . . . . . . . . . . . . . . . . . . . . . Total Robot Build Rating . | . . . . . . . . . . . . . . . . . . . . . . . . . . . . . . . . . . . Part Schematics Acquired 40 | . 1 . 3 . . . 1 6 . . 4 . 1 . 2 . . 6 . 2 . . 4 . . . . . . 6 2 . 2 . Parts Built 11 | . . . . . . . . 1 . . . . . . 2 . . . . 2 . . . . 1 . . . . 1 1 3 . . Matter 3268 | . . . . . . . . 285 . . . . . . 471 . . . . 541 . . . . 238 . . . . 263 417 1053 . . Time 989 | . . . . . . . . 76 . . . . . . 175 . . . . 216 . . . . 169 . . . . 62 74 217 . . Total Part Build Rating 68 | . . . . . . . . 5 . . . . . . 7 . . . . 13 . . . . 6 . . . . 7 9 21 . . Parts Repaired 14 | . . . 3 . . . 2 . . . . . 1 . 1 . . . . 2 . . . . . . . . . 1 1 . 2 1 Time 642 | . . . 158 . . . 88 . . . . . 19 . 50 . . . . 131 . . . . . . . . . 40 49 . 74 33 Parts Recycled . | . . . . . . . . . . . . . . . . . . . . . . . . . . . . . . . . . . . Recycled Matter . | . . . . . . . . . . . . . . . . . . . . . . . . . . . . . . . . . . . Retrieved Matter . | . . . . . . . . . . . . . . . . . . . . . . . . . . . . . . . . . . . Retrieved Components . | . . . . . . . . . . . . . . . . . . . . . . . . . . . . . . . . . . . Parts Scanalyzed 17 | . . . 3 . . . 2 6 . . . . 1 . 2 . . . . . . . . . . . . . . 2 . . 1 . Part Schematics Acquired 15 | . . . 3 . . . 1 6 . . . . 1 . 1 . . . . . . . . . . . . . . 2 . . 1 . Parts Damaged 4 | . . . 1 . . . . 1 . . . . . . . . . . . . . . . . . . . . . 1 . . 1 . Bothacking | -11 -10 -10 -9 -9 -9 -8 -8 -7 -7 -7 -7 -6 -6 -6 -6 -6 -6 -6 -5 -5 -5 -5 -5 -4 -4 -4 -4 -4 -3 -3 -3 -2 -2 -2 ------------ Run | Scr Mat Min Mat Min Exi Min Mat Fac Low Low Zio Pro Fac Was Fac Low Low Dat Pro Fac Upp Upp Zhi Pro Fac Upp Upp War Pro Res Tes Res Qua Sec Used RIF Installer . | . . . . . . . . . . . . . . . . . . . . . . . . . . . . . . . . . . . Robots Hacked 2 | . . . . . . . . . . . . . . . 2 . . . . . . . . . . . . . . . . . . . Non-combat 2 | . . . . . . . . . . . . . . . 2 . . . . . . . . . . . . . . . . . . . Combat . | . . . . . . . . . . . . . . . . . . . . . . . . . . . . . . . . . . . Robot Hacks Applied 4 | . . . . . . . . . . . . . . . 4 . . . . . . . . . . . . . . . . . . . no_distress 2 | . . . . . . . . . . . . . . . 2 . . . . . . . . . . . . . . . . . . . find_fabricator 1 | . . . . . . . . . . . . . . . 1 . . . . . . . . . . . . . . . . . . . find_recycling 1 | . . . . . . . . . . . . . . . 1 . . . . . . . . . . . . . . . . . . . Relay Couplers Released 6 | . . . . . . . . . . . . . . . . . . . . . . . . . . . . . . . . 6 . . Machine Destruction 3 | . . . . . . . . . . . . . . . . . . . . . . . . . . . . . . . . 3 . . Programmers 3 | . . . . . . . . . . . . . . . . . . . . . . . . . . . . . . . . 3 . . Robots Rewired 1 | . . . . . . . . . . . . . . . . . . . . . . . . . 1 . . . . . . . . . Allies Hacked 1 | . . . . . . . . . . . . . . . 1 . . . . . . . . . . . . . . . . . . . Hacks Repelled . | . . . . . . . . . . . . . . . . . . . . . . . . . . . . . . . . . . . Allies | -11 -10 -10 -9 -9 -9 -8 -8 -7 -7 -7 -7 -6 -6 -6 -6 -6 -6 -6 -5 -5 -5 -5 -5 -4 -4 -4 -4 -4 -3 -3 -3 -2 -2 -2 -------- Run | Scr Mat Min Mat Min Exi Min Mat Fac Low Low Zio Pro Fac Was Fac Low Low Dat Pro Fac Upp Upp Zhi Pro Fac Upp Upp War Pro Res Tes Res Qua Sec Total Allies 10 | . . 1 . 3 . . . 1 . . . . . . 1 . . . . 1 . . . . 1 . . . . 1 . . 1 . Largest Group 3 | . . 1 . 3 . . . 1 . . . . . . 1 . . . . 1 . . . . 1 . . . . 1 1 . 1 . Highest-Rated Group 56 | . . 31 . 40 . . . 10 . . . . . . 26 . . . . 10 . . . . 56 . . . . 26 26 . 44 . Highest-Rated Ally 56 | . . 31 . 16 . . . 10 . . . . . . 26 . . . . 10 . . . . 56 . . . . 26 26 . 44 . Total Orders 20 | . . . . . . . . 3 . . . . . . . . . . . . . . . . 1 . . . . . . 12 3 1 STAY 3 | . . . . . . . . 2 . . . . . . . . . . . . . . . . 1 . . . . . . . . . ROAM 1 | . . . . . . . . . . . . . . . . . . . . . . . . . . . . . . . . 1 . . FOLLOW 3 | . . . . . . . . 1 . . . . . . . . . . . . . . . . . . . . . . . 1 1 . EXPLORE 2 | . . . . . . . . . . . . . . . . . . . . . . . . . . . . . . . . 2 . . RETURN 11 | . . . . . . . . . . . . . . . . . . . . . . . . . . . . . . . . 8 2 1 Ally Attacks 198 | . . 3 . 40 . . . . . . . . . . . . . . . . . . . . . . . . . . . 90 53 12 Total Damage 3628 | . . 42 . 433 . . . . . . . . . . . . . . . . . . . . . . . . . . . 1663 1263 227 Kills 19 | . . . . 5 . . . . . . . . . . . . . . . . . . . . . . . . . . . 7 7 . Allies Corrupted . | . . . . . . . . . . . . . . . . . . . . . . . . . . . . . . . . . . . Allies Melted . | . . . . . . . . . . . . . . . . . . . . . . . . . . . . . . . . . . . Intel | -11 -10 -10 -9 -9 -9 -8 -8 -7 -7 -7 -7 -6 -6 -6 -6 -6 -6 -6 -5 -5 -5 -5 -5 -4 -4 -4 -4 -4 -3 -3 -3 -2 -2 -2 ------- Run | Scr Mat Min Mat Min Exi Min Mat Fac Low Low Zio Pro Fac Was Fac Low Low Dat Pro Fac Upp Upp Zhi Pro Fac Upp Upp War Pro Res Tes Res Qua Sec Robot Analysis Total 5 | . . . . . . . . . . . . . . . . . . . . . . . 4 . . . . . . 1 . . . . Derelict Logs Recovered 26 | . . 1 . 1 . . . . 3 3 2 2 . . . 3 1 . 2 . 1 3 . 1 . 2 1 . . . . . . . Drone Launches 16 | . . . . . . . . . . . . . . . . . . . . . . . . . . . . . . . . 10 5 1 Drone Recoveries 14 | . . . . . . . . . . . . . . . . . . . . . . . . . . . . . . . . 10 3 1 Exploration | -11 -10 -10 -9 -9 -9 -8 -8 -7 -7 -7 -7 -6 -6 -6 -6 -6 -6 -6 -5 -5 -5 -5 -5 -4 -4 -4 -4 -4 -3 -3 -3 -2 -2 -2 ------------- Run | Scr Mat Min Mat Min Exi Min Mat Fac Low Low Zio Pro Fac Was Fac Low Low Dat Pro Fac Upp Upp Zhi Pro Fac Upp Upp War Pro Res Tes Res Qua Sec Turns Passed 24025 | 112 1087 1614 2397 1151 1010 1403 2460 862 379 255 495 275 438 21 1110 252 440 50 418 1181 279 193 80 365 864 158 133 418 346 785 765 1051 587 591 Spaces Moved 31455 | 60 510 839 1018 562 508 592 967 1625 840 648 892 502 680 71 2333 807 798 138 408 1705 732 562 168 765 1863 461 368 1179 1056 1836 1579 2690 1036 657 Core 154 | 5 . 133 . . . . . . . . . . . . . . . . . . . . . . . . . . . . . . . 16 Treads 4981 | 55 510 706 1018 562 508 592 967 7 . . . . . . . . . . 40 16 . . . . . . . . . . . . . . Legs . | . . . . . . . . . . . . . . . . . . . . . . . . . . . . . . . . . . . Wheels . | . . . . . . . . . . . . . . . . . . . . . . . . . . . . . . . . . . . Hover . | . . . . . . . . . . . . . . . . . . . . . . . . . . . . . . . . . . . Flight 26320 | . . . . . . . . 1618 840 648 892 502 680 71 2333 807 798 138 368 1689 732 562 168 765 1863 461 368 1179 1056 1836 1579 2690 1036 641 Fastest Speed 24 | 50 160 50 180 190 190 210 186 29 29 29 29 29 26 26 26 26 26 26 32 32 32 32 32 32 32 32 32 27 27 27 27 24 24 24 Average Speed 55 | 150 171 153 181 190 195 210 193 30 29 29 52 29 26 26 26 26 26 26 72 37 32 32 32 32 32 32 32 29 27 27 27 24 24 39 Slowest Speed 1200 | 160 180 180 190 190 210 210 210 186 99 29 99 29 29 26 99 26 96 102 160 170 32 32 32 32 108 32 32 32 27 107 100 96 24 1200 Overloaded Moves . | . . . . . . . . . . . . . . . . . . . . . . . . . . . . . . . . . . . Propulsion Burnouts . | . . . . . . . . . . . . . . . . . . . . . . . . . . . . . . . . . . . Robots Hopped 105 | . . . . . . . . 27 1 1 . 2 5 . 22 . . 3 1 9 . . . . 11 1 1 2 . 7 9 3 . . Cave-ins Triggered . | . . . . . . . . . . . . . . . . . . . . . . . . . . . . . . . . . . . Teleports 3 | . . . . . . . . . . . . . . . . . . . . . . . . . . . . . . . . . 1 2 Exploration Rate (%) 68 | 6 73 98 94 96 87 99 56 32 84 80 85 62 19 61 43 91 81 76 67 38 88 77 60 75 33 73 57 96 97 49 93 51 94 33 Regions Visited 34 Branch Regions 23 Pre-discovered Areas 17 | . . 1 . 2 . . . . . 1 2 . . . . 2 . 1 2 . 1 1 3 . . . 1 . . . . . . . Known Exits Taken 25 | . . . 1 . . . . 1 1 1 1 1 . . 1 1 1 1 1 1 1 1 1 1 1 1 1 1 1 1 1 1 1 . Unknown Exits Taken 7 | 1 1 1 . 1 1 1 1 . . . . . . . . . . . . . . . . . . . . . . . . . . . Scrap Searched 37 | . . 1 . 1 . 1 . . 5 3 3 . . . . 4 1 . 1 . 2 5 . 2 . 3 1 . 4 . . . . . Spaces Dug 291 | . . 7 8 . . . . 6 7 . . 1 14 . 29 7 14 . 1 33 16 . . 23 25 3 4 . 10 37 13 11 16 6 Terrain Destroyed 748 | . 1 26 30 55 . 122 4 6 7 . . 1 14 . 29 7 14 . 2 33 16 . . 28 25 3 4 . 53 37 13 91 16 111 Melee 249 | . . . . . . . . 6 7 . . 1 14 . 29 7 14 . 1 33 9 . . 7 22 3 3 . 10 37 13 11 16 6 Projectile 54 | . . . . 5 . 1 4 . . . . . . . . . . . 1 . 7 . . 21 3 . 1 . . . . . . 11 AOE 445 | . 1 26 30 50 . 121 . . . . . . . . . . . . . . . . . . . . . . 43 . . 80 . 94 Terrain Rammed . | . . . . . . . . . . . . . . . . . . . . . . . . . . . . . . . . . . . Walls Destroyed . | . . . . . . . . . . . . . . . . . . . . . . . . . . . . . . . . . . . Machines Disabled . | . . . . . . . . . . . . . . . . . . . . . . . . . . . . . . . . . . . Actions | -11 -10 -10 -9 -9 -9 -8 -8 -7 -7 -7 -7 -6 -6 -6 -6 -6 -6 -6 -5 -5 -5 -5 -5 -4 -4 -4 -4 -4 -3 -3 -3 -2 -2 -2 --------- Run | Scr Mat Min Mat Min Exi Min Mat Fac Low Low Zio Pro Fac Was Fac Low Low Dat Pro Fac Upp Upp Zhi Pro Fac Upp Upp War Pro Res Tes Res Qua Sec Total 36793 | 76 625 1085 1417 607 523 670 1376 1970 964 713 918 622 908 72 2755 834 996 148 515 2172 755 574 190 851 2087 467 375 1249 1090 2039 1873 3068 1337 872 Wait 3398 | 4 18 156 194 15 . 16 172 288 108 64 24 111 184 2 305 15 153 5 63 384 5 7 . 50 149 . . 37 6 117 152 307 187 100 Move 31223 | 59 509 838 1017 561 507 591 966 1574 837 645 891 498 670 70 2290 806 797 132 405 1687 731 561 167 764 1840 458 365 1175 1055 1821 1561 2683 1035 657 Hop 94 | . . . . . . . . 23 1 1 . 1 5 . 20 . . 2 1 8 . . . . 11 1 1 1 . 7 8 3 . . Pick Up 223 | 5 15 14 34 2 11 3 30 10 4 1 1 . 4 . 7 1 1 2 8 2 . 2 1 . 5 2 . 6 1 6 18 7 15 5 Fast Attach 166 | 6 1 5 5 . 2 . 5 2 . . . . 5 . 7 . 1 . 4 18 2 1 8 2 7 . . 8 2 14 21 11 18 11 Attach 108 | . 1 5 6 . . 1 5 12 1 . . 2 12 . 2 . 7 1 8 2 . . . . 4 . . 1 . 3 10 3 6 16 Detach 58 | . . 2 . . 1 . . 5 1 . . 2 6 . 1 . 7 2 3 4 . . 2 . 6 . . 2 . 3 6 1 . 4 Swap 152 | 1 6 12 27 1 . 7 21 8 1 . 1 5 1 . 4 1 5 1 2 1 . 1 . . 6 1 4 1 2 . 15 10 5 2 Drop 320 | . 9 9 42 2 2 1 47 23 4 1 1 . 2 . 10 1 2 2 8 10 1 2 8 2 7 2 . 14 2 18 35 16 31 6 Fire 482 | 1 50 44 92 25 . 51 129 . . . . . . . . . 9 . 8 . 7 . . 21 3 . 1 . 8 . 6 7 . 20 Melee 431 | . . . . . . . . 7 7 . . 3 19 . 42 10 14 1 5 46 9 . 4 12 26 3 4 4 14 50 41 20 40 50 Ram . | . . . . . . . . . . . . . . . . . . . . . . . . . . . . . . . . . . . Kick . | . . . . . . . . . . . . . . . . . . . . . . . . . . . . . . . . . . . Crush 2 | . . . . 1 . . 1 . . . . . . . . . . . . . . . . . . . . . . . . . . . Escape Stasis 112 | . . . . . . . . 18 . . . . . . 67 . . . . 8 . . . . 18 . . . . . . . . 1 Rewire 21 | . 16 . . . . . . . . . . . . . . . . . . . . . . . 5 . . . . . . . . . Trap 3 | . . . . . . . . . . 1 . . . . . . . . . 2 . . . . . . . . . . . . . . Miscellaneous . | . . . . . . . . . . . . . . . . . . . . . . . . . . . . . . . . . . . Route ------- -11/Scrapyard -10/Materials (discovered 3 exits: *Mat x2 / [*Min]) -10/Mines (discovered 2 exits: *Mat x2) -9/Materials (discovered 7 exits: *Mat x3 / *Min x2 / *Sto x2) -9/Mines (discovered 4 exits: *Mat x2 / *Exi / *Zio) -9/Exiles -8/Mines (discovered 2 exits: *Mat x2) -8/Materials -7/Factory -7/Lower Caves -7/Lower Caves -7/Zion -6/Proximity Caves -6/Factory (discovered 3 exits: Fac x3) -6/Waste -6/Factory (discovered 2 exits: *Fac / *Low) -6/Lower Caves -6/Lower Caves (discovered 2 exits: *Fac / *Dat) -6/Data Miner -5/Proximity Caves -5/Factory (discovered 3 exits: *Fac / *Upp x2) -5/Upper Caves -5/Upper Caves (discovered 2 exits: *Fac / *Zhi) -5/Zhirov -4/Proximity Caves -4/Factory (discovered 6 exits: *Res x2 / *Upp x2 / Ext x2) -4/Upper Caves -4/Upper Caves -4/Warlord -3/Proximity Caves -3/Research (discovered 3 exits: Arm / *Tes x2) -3/Testing -2/Research (discovered 4 exits: *Acc x2 / *Qua x2) -2/Quarantine (discovered 2 exits: *Acc / *Sec) -2/Section 7 History --------- Turn | Location | Event 7 | -11/Scrapyard | Discovered new exit (range 15) 113 | -11/Scrapyard | Entered Materials 309 | -10/Materials | Build established: Mutant 626 | -10/Materials | Discovered new exit (range 3) 939 | -10/Materials | Discovered new exit (range 3) 1175 | -10/Materials | Discovered new exit (range 13) 1200 | -10/Materials | Entered Mines 1285 | -10/Mines | Escorted by a lone wolf Derelict 1305 | -10/Mines | Learned location of Storage (-9) 1389 | -10/Mines | Assembled infested the area 1394 | -10/Mines | Assisted by a Guerilla fighting off Assembled 1480 | -10/Mines | Core integrity fell below 50% 1815 | -10/Mines | Discovered new exit (range 3) 2042 | -10/Mines | Destroyed YI-UF0 2106 | -10/Mines | Build established: Scavenger-Mutant 2230 | -10/Mines | Found a damaged Exp. Sensor Array with a note attached 2234 | -10/Mines | Found Prototype Device 2271 | -10/Mines | Discovered new exit (range 4) 2435 | -10/Mines | Learned Materials stockpile data 2571 | -10/Mines | Core integrity fell below 20% 2814 | -10/Mines | Entered Materials 2814 | -9/Materials | Evolved 2 slots: Utility x2 2856 | -9/Materials | Build established: Mutant 3011 | -9/Materials | Identified exit to Mines 3011 | -9/Materials | Identified exit to Storage 3411 | -9/Materials | Discovered new exit (range 16) 3479 | -9/Materials | Identified Exp. Sensor Array 3830 | -9/Materials | Discovered new exit (range 10) 3896 | -9/Materials | Build established: Hauler-Mutant 3976 | -9/Materials | Repaired Faulty Exp. Sensor Array? 4435 | -9/Materials | Discovered new exit (range 14) 4461 | -9/Materials | Core integrity fell below 50% 5066 | -9/Materials | Repaired Lgt. EM Pulse Cannon 5094 | -9/Materials | Repaired Lgt. Armor Plating 5211 | -9/Materials | Entered Mines 5237 | -9/Mines | Received a Rocket Launcher from a helpful Derelict 5370 | -9/Mines | Discovered new exit (range 9) 5420 | -9/Mines | Deemed a non-threat by the Exiles lab entrance 5420 | -9/Mines | Discovered new exit (range 5) 5555 | -9/Mines | Assisted by bots powering up and referring to "LRC-V3" 5574 | -9/Mines | Learned location of Zion (-7) 5705 | -9/Mines | Discovered new exit (range 10) 5993 | -9/Mines | A Derelict revealed a hidden shortcut to a safe place 6362 | -9/Mines | Entered Exiles 6362 | -9/Exiles | Found Exiles lab abandoned 7342 | -9/Exiles | Discovered new exit (range 15) 7372 | -9/Exiles | Entered Mines 7633 | -8/Mines | Discovered new exit (range 14) 7860 | -8/Mines | Discovered new exit (range 7) 8036 | -8/Mines | Core integrity fell below 20% 8775 | -8/Mines | Entered Materials 8775 | -8/Materials | Evolved 2 slots: Propulsion x1, Utility x1 9246 | -8/Materials | Discovered new exit (range 8) 10183 | -8/Materials | Repaired Arm. Treads 10234 | -8/Materials | Repaired Lgt. Angular Momentum Engine 11235 | -8/Materials | Entered Factory 11235 | -7/Factory | Evolved 2 slots: Utility x2 11554 | -7/Factory | Build established: Hacker-Sprinter 11774 | -7/Factory | Discovered new exit (range 11) 11946 | -7/Factory | Fabricated Exp. Sensor Array (x1) 12038 | -7/Factory | Local fabrication network quarantined 12097 | -7/Factory | Identified exit to Lower Caves 12097 | -7/Factory | Entered Lower Caves 12226 | -7/Lower Caves | Learned Factory security intel 12232 | -7/Lower Caves | Learned Factory stockpile data 12277 | -7/Lower Caves | Learned Factory garrison access intel 12401 | -7/Lower Caves | Discovered new exit (range 14) 12437 | -7/Lower Caves | Identified exit to Lower Caves 12476 | -7/Lower Caves | Entered another Lower Caves area 12544 | -7/Lower Caves | Learned location of 1 exit from Factory 12546 | -7/Lower Caves | Learned 4 Factory zone layouts 12632 | -7/Lower Caves | Encountered a Warlord checkpoint 12687 | -7/Lower Caves | Discovered new exit (range 9) 12689 | -7/Lower Caves | Identified exit to Zion 12731 | -7/Lower Caves | Entered Zion 12743 | -7/Zion | Learned Factory emergency access door positions 12747 | -7/Zion | Found CR-A16's Pointy Stick 12756 | -7/Zion | Acquired unknown access codes intercepted by a Zionite 12763 | -7/Zion | Discovered new exit (range 15) 12835 | -7/Zion | Received a visual enhancement algorithm 12856 | -7/Zion | Learned Factory garrison access intel 13223 | -7/Zion | Build established: Hacker-Mutant 13224 | -7/Zion | Identified exit to Proximity Caves 13226 | -7/Zion | Entered Proximity Caves 13325 | -6/Proximity Caves | Spotted B-75 Beast 13366 | -6/Proximity Caves | Revealed the true nature of CR-A16's Pointy Stick 13369 | -6/Proximity Caves | Destroyed B-75 Beast 13464 | -6/Proximity Caves | Learned location of 1 exit from Factory 13465 | -6/Proximity Caves | Learned location of 1 exit from Factory 13494 | -6/Proximity Caves | Attracted the attention of an 0b10 outpost 13498 | -6/Proximity Caves | Discovered new exit (range 12) 13501 | -6/Proximity Caves | Identified exit to Factory 13501 | -6/Proximity Caves | Entered Factory 13501 | -6/Factory | Evolved 2 slots: Power x1, Propulsion x1 13502 | -6/Factory | Identified exit to Factory 13507 | -6/Factory | Loaded intel: 4 garrison access locations 13524 | -6/Factory | Build established: Hacker-Sprinter 13547 | -6/Factory | Repaired Adv. Weight Redist. System 13596 | -6/Factory | Lost 5 parts (2p1n2u) 13939 | -6/Factory | Sucked down chute 13939 | -6/Factory | Entered Waste 13948 | -6/Waste | Spotted C-40 Crusher 13949 | -6/Waste | Spotted C-40 Crusher 13951 | -6/Waste | Spotted C-40 Crusher 13953 | -6/Waste | Discovered new exit (range 10) 13953 | -6/Waste | Spotted C-40 Crusher 13954 | -6/Waste | EMP discharged 13954 | -6/Waste | System corruption reached 10% 13959 | -6/Waste | Identified exit to Factory 13960 | -6/Waste | Entered Factory 13961 | -6/Factory | Loaded intel: 4 garrison access locations 14031 | -6/Factory | Discovered new exit (range 17) 14173 | -6/Factory | Fabricated Exp. Sensor Array? 14253 | -6/Factory | Hacking Suite fried by hacking feedback 14416 | -6/Factory | Fabricated Imp. Flight Unit (x1) 14493 | -6/Factory | Discovered exit to Factory (range 15) 14582 | -6/Factory | Repaired Lgt. Fission Core 14868 | -6/Factory | Local fabrication network quarantined 15070 | -6/Factory | Identified exit to Lower Caves 15070 | -6/Factory | Entered Lower Caves 15081 | -6/Lower Caves | Learned Factory garrison access intel 15086 | -6/Lower Caves | Learned Factory emergency access door positions 15086 | -6/Lower Caves | Learned Armory emergency access door positions 15086 | -6/Lower Caves | Learned Research stockpile data 15086 | -6/Lower Caves | Learned Research security intel 15086 | -6/Lower Caves | Learned Extension terminal intel 15170 | -6/Lower Caves | Encountered a Warlord checkpoint 15231 | -6/Lower Caves | Discovered new exit (range 13) 15234 | -6/Lower Caves | Identified exit to Lower Caves 15322 | -6/Lower Caves | Entered another Lower Caves area 15323 | -6/Lower Caves | Discovered exit to Factory (range 9) 15504 | -6/Lower Caves | Learned 4 Factory zone layouts 15761 | -6/Lower Caves | Discovered new exit (range 3) 15761 | -6/Lower Caves | Identified exit to Data Miner 15762 | -6/Lower Caves | Entered Data Miner 15762 | -6/Data Miner | Discovered new exit (range 6) 15765 | -6/Data Miner | Identified exit to Proximity Caves 15768 | -6/Data Miner | Met Data Miner 15773 | -6/Data Miner | Learned location of Section 7 (-2) 15773 | -6/Data Miner | Acquired the access code to Warlord's prototype stash 15778 | -6/Data Miner | Received God Mode back door access code from Data Miner 15812 | -6/Data Miner | Entered Proximity Caves 15893 | -5/Proximity Caves | Spotted B-75 Beast 15898 | -5/Proximity Caves | Destroyed B-75 Beast 15928 | -5/Proximity Caves | Lost 3 parts (1p2u) 16029 | -5/Proximity Caves | Lost 6 parts (1p3u2w) 16116 | -5/Proximity Caves | Build established: Hacker-Mutant 16228 | -5/Proximity Caves | Discovered exit to Factory (range 5) 16230 | -5/Proximity Caves | Entered Factory 16230 | -5/Factory | Evolved 2 slots: Utility x2 16233 | -5/Factory | Loaded intel: 4 garrison access locations 16348 | -5/Factory | Discovered new exit (range 6) 16351 | -5/Factory | Identified exit to Factory 16420 | -5/Factory | Fabricated Impulse Thruster Array (x1) 16448 | -5/Factory | Fabricated Exp. Sensor Array? 16538 | -5/Factory | Repaired Imp. Flight Unit 16832 | -5/Factory | Local fabrication network quarantined 17000 | -5/Factory | Identified exit to Upper Caves 17182 | -5/Factory | Build established: Hacker-Sprinter 17334 | -5/Factory | Repaired Exp. Sensor Array 17411 | -5/Factory | Entered Upper Caves 17503 | -5/Upper Caves | Encountered a Warlord checkpoint 17533 | -5/Upper Caves | Found Alien Artifact 17533 | -5/Upper Caves | Identified Core Expander 17533 | -5/Upper Caves | Installed Core Expander, added new Weapon slot 17556 | -5/Upper Caves | Learned location of Warlord (-4) 17688 | -5/Upper Caves | Discovered new exit (range 9) 17690 | -5/Upper Caves | Identified exit to Upper Caves 17690 | -5/Upper Caves | Entered another Upper Caves area 17707 | -5/Upper Caves | Discovered exit to Factory (range 6) 17776 | -5/Upper Caves | Identified exit to Zhirov 17784 | -5/Upper Caves | Learned Factory emergency access door positions 17840 | -5/Upper Caves | Learned location of Armory (-3) 17883 | -5/Upper Caves | Entered Zhirov 17883 | -5/Zhirov | Discovered new exit (range 3) 17889 | -5/Zhirov | Met Zhirov 17895 | -5/Zhirov | Learned location of Quarantine (-2) 17895 | -5/Zhirov | Learned location of Testing (-3) 17895 | -5/Zhirov | Learned location of Command (-1) 17898 | -5/Zhirov | Zhirov requested help retrieving the SGEMP Prototype 17904 | -5/Zhirov | Found Alien Artifact 17904 | -5/Zhirov | Identified Integrated Dissipator 17904 | -5/Zhirov | Installed Integrated Dissipator, increased core heat dissipation (+20) 17909 | -5/Zhirov | Found Alien Artifact 17963 | -5/Zhirov | Identified exit to Proximity Caves 17963 | -5/Zhirov | Entered Proximity Caves 18315 | -4/Proximity Caves | Discovered exit to Factory (range 6) 18328 | -4/Proximity Caves | Entered Factory 18328 | -4/Factory | Evolved 2 slots: Utility x2 18358 | -4/Factory | Identified exit to Upper Caves 18358 | -4/Factory | Identified exit to Extension 18556 | -4/Factory | Found Prototype Slashing Weapon 18556 | -4/Factory | Identified Centrium Greatsword 18744 | -4/Factory | Discovered new exit (range 9) 18747 | -4/Factory | Identified exit to Research 18984 | -4/Factory | Discovered exit to Research (range 16) 19142 | -4/Factory | Fabricated Mni. Smartbomb Launcher (x1) 19192 | -4/Factory | Entered Upper Caves 19200 | -4/Upper Caves | Learned 4 Research zone layouts 19318 | -4/Upper Caves | Learned Research terminal intel 19338 | -4/Upper Caves | Discovered new exit (range 2) 19338 | -4/Upper Caves | Identified exit to Upper Caves 19350 | -4/Upper Caves | Entered another Upper Caves area 19352 | -4/Upper Caves | Attracted the attention of an 0b10 checkpoint 19372 | -4/Upper Caves | Encountered a Warlord checkpoint 19375 | -4/Upper Caves | Build established: Hacker-Scout 19421 | -4/Upper Caves | Discovered new exit (range 9) 19434 | -4/Upper Caves | Identified exit to Warlord 19470 | -4/Upper Caves | Attracted the attention of an 0b10 base 19483 | -4/Upper Caves | Entered Warlord 19504 | -4/Warlord | Discovered new exit (range 8) 19539 | -4/Warlord | Learned Armory security intel 19539 | -4/Warlord | Learned Factory garrison access intel 19539 | -4/Warlord | Learned Armory recycling unit intel 19539 | -4/Warlord | Learned 4 Access zone layouts 19539 | -4/Warlord | Learned Research emergency access door positions 19606 | -4/Warlord | Visited the Vortex Lab 19609 | -4/Warlord | Met EX-DEC 19611 | -4/Warlord | Found Prototype Energy Cannon 19611 | -4/Warlord | Identified Vortex Driver 19614 | -4/Warlord | Found Prototype Piercing Weapon 19614 | -4/Warlord | Identified Vortex Lance 19616 | -4/Warlord | Found Vortex Lance 19628 | -4/Warlord | Warlord's base attacked by MAIN.C 19657 | -4/Warlord | Met Warlord 19661 | -4/Warlord | Opened Warlord's prototype stash 19663 | -4/Warlord | Found Prototype Device 19663 | -4/Warlord | Identified System Purifier 19672 | -4/Warlord | Found Prototype Hackware 19672 | -4/Warlord | Identified System Mapper 19893 | -4/Warlord | Opened side exit 19900 | -4/Warlord | Identified exit to Proximity Caves 19901 | -4/Warlord | Entered Proximity Caves 19963 | -3/Proximity Caves | Build established: Hacker-Sprinter 20111 | -3/Proximity Caves | Discovered exit to Research (range 11) 20237 | -3/Proximity Caves | Found Alien Artifact 20237 | -3/Proximity Caves | Identified Dimensional Node Initializer 20237 | -3/Proximity Caves | Initialized slip node 20247 | -3/Proximity Caves | Entered Research 20247 | -3/Research | Evolved 2 slots: Utility x2 20252 | -3/Research | Loaded intel: 17 terminal locations 20264 | -3/Research | Identified exit to Armory 20264 | -3/Research | Identified exit to Testing 20422 | -3/Research | Found Unknown Device 20422 | -3/Research | Identified Antimissile System 20489 | -3/Research | Repaired Exp. Sensor Array 20538 | -3/Research | Build established: Wizard-Sprinter 20651 | -3/Research | Spotted B-86 Titan 20865 | -3/Research | Found Prototype Device 20865 | -3/Research | Identified EM Dispersion Field 20872 | -3/Research | Fabricated Mni. Fusion Reactor? 21032 | -3/Research | Entered Testing 21032 | -3/Testing | Accompanied by 1 ally 21037 | -3/Testing | Found Prototype Energy Gun 21038 | -3/Testing | Identified Tachyon Dispersion Ray 21093 | -3/Testing | Found System Mapper 21167 | -3/Testing | Protovariant out of control (PY-B9Y4L6I0VP) 21167 | -3/Testing | Unleashed a protovariant (PY-B9Y4L6I0VP) 21295 | -3/Testing | Found Prototype Protection 21295 | -3/Testing | Identified Med. Regenerative Plating 21303 | -3/Testing | Found Prototype Protection 21311 | -3/Testing | Identified exit to Research 21342 | -3/Testing | Found Prototype Slashing Weapon 21342 | -3/Testing | Identified Molecular Scythe 21345 | -3/Testing | Found Prototype Device 21345 | -3/Testing | Identified Femtoactuators 21348 | -3/Testing | Found Prototype Processor 21348 | -3/Testing | Identified Exp. Melee Analysis Suite 21350 | -3/Testing | Found Prototype Processor 21350 | -3/Testing | Identified Exp. Core Analyzer 21421 | -3/Testing | Found Prototype Launcher 21421 | -3/Testing | Identified Containment Facilitator 21436 | -3/Testing | Local fabrication network quarantined 21467 | -3/Testing | Fabricated Dimensional Manipulator (x1) 21558 | -3/Testing | Found Prototype Energy Cannon 21676 | -3/Testing | Repaired Centrium Greatsword 21701 | -3/Testing | Identified Disintegrator 21797 | -3/Testing | Entered Research 21797 | -2/Research | Warlord forces began assault on 0b10 21797 | -2/Research | Evolved 2 slots: Propulsion x1, Utility x1 21798 | -2/Research | Identified exit to Quarantine 21828 | -2/Research | Found Prototype Device 21828 | -2/Research | Identified Exp. Actuator Array 21907 | -2/Research | Fabricated Mni. Fusion Reactor (x1) 21907 | -2/Research | Research machine network offline 21925 | -2/Research | Fabricated Diametric Drive (x1) 21941 | -2/Research | Fabricated Assault Drone Bay (x1) 21992 | -2/Research | Met up with Warlord 21998 | -2/Research | Local fabrication network quarantined 22056 | -2/Research | Found Prototype Device 22056 | -2/Research | Identified Adv. Kinecellerator 22101 | -2/Research | Spotted Striker 22102 | -2/Research | Spotted Executioner 22110 | -2/Research | Destroyed Striker 22186 | -2/Research | Spotted Striker 22209 | -2/Research | Allies destroyed Striker 22257 | -2/Research | Found Prototype Device 22257 | -2/Research | Identified EM Disruption Field 22372 | -2/Research | Discovered new exit (range 9) 22377 | -2/Research | Identified exit to Access 22467 | -2/Research | Spotted Striker 22481 | -2/Research | Spotted Striker 22564 | -2/Research | Found Prototype Device 22564 | -2/Research | Identified Exp. Focal Shield 22580 | -2/Research | Spotted Striker 22675 | -2/Research | Discovered exit to Access (range 15) 22700 | -2/Research | Borebot progress halted 22708 | -2/Research | Spotted Striker 22709 | -2/Research | Spotted Striker 22797 | -2/Research | Warlord invited to help at Command 22848 | -2/Research | Entered Quarantine 22870 | -2/Quarantine | Found Alien Artifact 22876 | -2/Quarantine | Found Alien Artifact 22901 | -2/Quarantine | Found Alien Artifact 22936 | -2/Quarantine | Identified Terrabomb (x2) 22936 | -2/Quarantine | Identified Core Reset Matrix 22936 | -2/Quarantine | Identified Transdimensional Reconstructor 22971 | -2/Quarantine | Repaired Centrium Greatsword 22975 | -2/Quarantine | Discovered exit to Access (range 8) 22979 | -2/Quarantine | Found Alien Impact Weapon 22979 | -2/Quarantine | Identified Core Stripper 23102 | -2/Quarantine | Found Alien Artifact 23103 | -2/Quarantine | Identified Hpw. Transdimensional Reconstructor 23103 | -2/Quarantine | Warped through subspace 23143 | -2/Quarantine | Found Alien Artifact 23143 | -2/Quarantine | Identified Stasis Generator 23155 | -2/Quarantine | Found Alien Slashing Weapon 23155 | -2/Quarantine | Identified Sigix Broadsword 23173 | -2/Quarantine | Found Hpw. Transdimensional Reconstructor 23185 | -2/Quarantine | Found Alien Artifact 23185 | -2/Quarantine | Identified Phase Redirector 23254 | -2/Quarantine | Found Alien Artifact 23254 | -2/Quarantine | Identified Subatomic Replicator 23267 | -2/Quarantine | Identified SHELL Armor 23317 | -2/Quarantine | Repaired Broken Centrium Greatsword 23348 | -2/Quarantine | Spotted Fortress 23355 | -2/Quarantine | Destroyed Fortress 23374 | -2/Quarantine | Found Prototype Device 23374 | -2/Quarantine | Identified Exp. Force Field 23432 | -2/Quarantine | Discovered new exit (range 6) 23433 | -2/Quarantine | Identified exit to Section 7 23435 | -2/Quarantine | Entered Section 7 23435 | -2/Section 7 | Accompanied by 1 ally 23436 | -2/Section 7 | Spotted S7 Guard 23440 | -2/Section 7 | Found Alien Artifact 23440 | -2/Section 7 | Identified Core Regenerator 23440 | -2/Section 7 | Used Core Regenerator, restored core integrity (+149) 23459 | -2/Section 7 | Warped through subspace 23462 | -2/Section 7 | Spotted B-90 Cyclops 23468 | -2/Section 7 | Scanned by Researcher 23485 | -2/Section 7 | Used Subatomic Replicator to replicate Integrated Dissipator 23486 | -2/Section 7 | Found Integrated Dissipator 23486 | -2/Section 7 | Installed Integrated Dissipator, increased core heat dissipation (+20) 23488 | -2/Section 7 | Installed Integrated Dissipator, increased core heat dissipation (+20) 23509 | -2/Section 7 | Lost 6 parts (1p4u1w) 23540 | -2/Section 7 | Repaired Mni. Fusion Reactor 23680 | -2/Section 7 | Destroyed S7 Guard 23717 | -2/Section 7 | Found Integrated Dissipator 23717 | -2/Section 7 | Installed Integrated Dissipator, increased core heat dissipation (+20) 23835 | -2/Section 7 | Found Alien Artifact 23835 | -2/Section 7 | Identified Integrated Reactor 23835 | -2/Section 7 | Installed Integrated Reactor, increased core energy generation (+10) 23950 | -2/Section 7 | Intercept squad dispatched 23958 | -2/Section 7 | Spotted Tracker 23958 | -2/Section 7 | Spotted Tracker 23983 | -2/Section 7 | Destroyed Tracker 23988 | -2/Section 7 | Spotted Combat Programmer 23988 | -2/Section 7 | Spotted Combat Programmer 23991 | -2/Section 7 | Warped through subspace 24005 | -2/Section 7 | Spotted Alpha 7 24007 | -2/Section 7 | Spotted Alpha 7 24010 | -2/Section 7 | Used Terrabomb 24011 | -2/Section 7 | Core integrity fell below 50% 24012 | -2/Section 7 | Spotted B-90 Cyclops 24020 | -2/Section 7 | Core integrity fell below 20% 24026 | -2/Section 7 | Destroyed by Tracker with Linked Autogun Last Messages --------------- 24014_ Held in stasis. 24014_ C-65 Expert is analyzing... 24015_ ALERT: Hostiles spotted, dispatching reinforcements to Terminal 7008. 24015_ Slug penetrates R-10 Processor. 24015_ Penetrated by Slug. 24016_ Cld. Impulse Thruster destroyed. 24017_ R-10 Processor collects Lrg. Storage Unit. 24017_ R-10 Processor destroyed. 24017_ Cld. Impulse Thruster destroyed. 24017_ K-01 Serf collects debris. 24018_ Held in stasis. 24018_ C-65 Expert is analyzing... 24018_ C-65 Expert destroyed. 24019_ CR-A16's Behemoth Slayer destroyed. 24020_ Exp. Energy Well destroyed. 24021_ K-01 Serf cleans the Cloning Tubes. 24022_ Adv. Hacking Suite destroyed. 24022_ Door malfunctions. 24024_ K-01 Serf cleans the Cloning Tubes. Map ----- +----------------------------------------------------+ | ?????????????????????????????????????????????????? | | ?????????????????????????????????????????????????? | | ?????????????????????????????????????????????????? | | ??????????????#???##?????????????????????????????? | | ????????? ??=?? ?????????????????????????????? | | ?????? ?? ?? ?????????????????????????????? | | ???# ?? ? ??????????? ?????????????????? | | ???# ! ?? """ ??????????? "???????????????? | | ???# !![ ## """ ????????? "???????????????? | | ?### !![ ;" """ "???????? """?????????????? | | ## " ![ ;; "S ##???"" ?????????????? | | " ;; "" ;###?""" ??????????????? | | " ;; "" ; ##""" "???????? ??????? | | " "";;";;;; ; ;"#""" "??????" ?????? | | """""""";;";;;;;;+;;;;; ; """""" ?????? | | AA + ?????? | | + ??????? | | R + "???????? | | + """?????? | | """""""""""";;;;;+;;;;; ; "?????? | | "" " 7 ; ;;;""" """""???? | | "" " """"" ; ;""" R ??? | | "" * ; """"" ; ;""" ??? | | "" ; """"" ; ;"" ??? | | """""/;!=; ggs ; ;" ??????? | | / !%/ """"" ; ;@ """"""????????????? | | """"""""=%%" """"" ; ; """"""????????????? | | ! " g""""" ; ;;;;;;#######????????????? | | "!"] 7 ; #?????????????????? | | ; ;;;;;;;;;; ##?????????????????? | | ; ; #??????????????????? | | ; ; #??????????????????? | | """ ;A; #??????????????????? | | = """";;;; ;;;;;;; #??????????????????? | | + ; #??????????????????? | | """"";;;;;;+;; ; ##??????????????????? | | =" ; ;; ; #???????????????????? | | " ; ;; ; ##???????????????????? | | " ;] ;; ; #????????????????????? | | +"" ; ;; ;; ##????????????????????? | | """"""""; ; ; #?????????????????????? | | " ] # + ; ##?????????????????????? | | + " ; ; ##??????????????????????? | | " | " ] ;; ;; ##???????????????????????? | | """"""""" "" ; ##????????????????????????? | | " """"""""""" " ###?????????????????????????? | | # " ###???????????????????????????? | | # !"""""""""""+####????????????????????????????? | | ###### ### #????????????????????????????? | | #?????#??# #????????????????????????????? | +----------------------------------------------------+ Best States ------------- Heat Dissipation 129 Energy Generation 62 Energy Capacity 1385 Matter Stores 600 Matter Capacity 600 Sight Range 23 Robot Scan Range 30 Terrain Scan Range 18 Terrain Scan Density 210 Power Amplification 30 Additional Mass Support 41 Armor Coverage 900 Resistance: TH 30 Resistance: EM 15 Power Shielding 66 Reclamation Efficiency 25 Weapon Cycling 15 Melee Speed Boost 50 Phase Shifting 10 Evasion (%) 76 Targeting Accuracy 8 Melee Accuracy 12 Recoil Reduction 3 Offensive Hacking 68 Defensive Hacking 12 Item Schematics ----------------- Hcp. Storage Unit | -10/Materials | Hacked Exp. Sensor Array | -9/Materials | Scanalyzed Imp. Flight Unit | -9/Materials | Scanalyzed Med. Storage Unit | -9/Materials | Scanalyzed Lgt. Armor Plating | -8/Materials | Scanalyzed Lgt. Angular Momentum Engine | -7/Factory | Scanalyzed Imp. Light Armor Plating | -7/Factory | Scanalyzed Shock Bomb Launcher | -7/Factory | Scanalyzed Arm. Treads | -7/Factory | Scanalyzed Hcp. Matter Pod | -7/Factory | Scanalyzed Gauss Rifle | -7/Factory | Scanalyzed Beamcaster | -7/Zion | Free Riot Gun | -7/Zion | Free Ripper | -7/Zion | Free Phasing Sabre | -7/Zion | Free Lgt. Fission Core | -6/Factory | Scanalyzed Energy Well | -6/Factory | Scanalyzed Gravity Neutralizing Apparatus | -6/Factory | Hacked Combat Drone Bay | -6/Data Miner | Free Lgt. Regenerative Plating | -6/Data Miner | Free Exp. Targeting Computer | -6/Data Miner | Free Exp. ECM Suite | -6/Data Miner | Free Cloaking Device | -6/Data Miner | Free Mni. Smartbomb Launcher | -6/Data Miner | Free Mic. Fission Core | -5/Factory | Hacked Biomechanical Wings | -5/Factory | Hacked Assault Drone Bay | -5/Zhirov | Free Exp. Heat Sink | -5/Zhirov | Free Exp. Optical Array | -5/Zhirov | Free Imp. Arc Thrower | -5/Zhirov | Free Adv. Hacking Suite | -3/Research | Hacked Mni. Fusion Reactor | -3/Research | Hacked Diametric Drive | -3/Research | Hacked Adv. System Shield | -3/Research | Hacked Impulse Thruster Array | -3/Research | Scanalyzed Cld. Impulse Thruster | -3/Research | Scanalyzed Dimensional Manipulator | -3/Testing | Hacked Hvy. Regenerative Plating | -3/Testing | Hacked Exp. Cooling System | -2/Quarantine | Hacked Centrium Greatsword | -2/Quarantine | Scanalyzed Robot Schematics ------------------ S-27 Virus | -6/Data Miner | Free G-50 Soldier | -6/Data Miner | Free G-67 Veteran | -6/Data Miner | Free P-70 Sage | -6/Data Miner | Free I-36 Angel | -6/Data Miner | Free I-47 Archangel | -6/Data Miner | Free Fabricated ------------ Exp. Sensor Array | x1 | -7/Factory Exp. Sensor Array | x1 | -6/Factory Imp. Flight Unit | x1 | -6/Factory Impulse Thruster Array | x1 | -5/Factory | Preloaded Exp. Sensor Array | x1 | -5/Factory Mni. Smartbomb Launcher | x1 | -4/Factory Mni. Fusion Reactor | x1 | -3/Research Dimensional Manipulator | x1 | -3/Testing Mni. Fusion Reactor | x1 | -2/Research Diametric Drive | x1 | -2/Research Assault Drone Bay | x1 | -2/Research Alien Tech Used ----------------- Core Expander Integrated Dissipator Dimensional Node Initializer Core Stripper High-powered Transdimensional Reconstructor Stasis Generator Sigix Broadsword Phase Redirector Subatomic Replicator Core Regenerator Integrated Reactor Transdimensional Reconstructor Terrabomb Achievements -------------- Rampage Signature Confirmed Watch This! Challenges ------------ None Game ------ Seed DamperSlugNanosword Manual? 0 Play Time 08:38:04 Cumulative 230.3 hours Start 2020.10.20 @ 22:45:30 End 2020.10.25 @ 22:27:06 Sessions 25 Manual Loads 0 Difficulty Rogue Special Mode None Game No. 94 Rogue 94 Adventurer 0 Explorer 0 Win Type - Total 5 Types 3/0/1/1/0/0/0/0/0 Lore% 52 Gallery% 83 Achievement% 63 Wizard Run 0 Options --------- ASCII 0 Keyboard 0 Movement Numpad Keybinds 0 Fullscreen 1 Font 18/SmallcapsGlow Map View 76x50 Tactical HUD 1 Map Filters NONE Filters NONE Steam 1 RUN: 0c3c0fd2-c674-4114-b3b8-f2d6ab451e06